Merchant Category,Supplier,Service,Summary of Purpose of Expenditure,invoice_date,net_amount
Education Services,Strive Academy Limited,Services to People,Fees and Charges,29/02/2024,6120
Education Services,Strive Academy Limited,Services to People,Fees and Charges,29/02/2024,4080
Education Services,Strive Academy Limited,Services to People,Fees and Charges,29/02/2024,2040
Education Services,Empowering Equine CIC,Services to People,Fees and Charges,29/02/2024,2775
Welfare Services,TURNING POINT,Services to People,Care Payments,29/02/2024,3685.5
Welfare Services,TURNING POINT,Services to People,Care Payments,29/02/2024,1287
Welfare Services,TURNING POINT,Services to People,Care Payments,29/02/2024,1260
Welfare Services,TURNING POINT,Services to People,Care Payments,29/02/2024,294
Welfare Services,TURNING POINT,Services to People,Care Payments,29/02/2024,138.6
Social Care Services,Engage Support Ltd,Services to People,Care Payments,29/02/2024,-7255.4
Social Care Services,Engage Support Ltd,Services to People,Care Payments,29/02/2024,14510.8
Social Care Services,Engage Support Ltd,Services to People,Care Payments,29/02/2024,9932.28
Social Care Services,Clyde House ISF,Services to People,Care Payments,29/02/2024,3503.28
Social Care Services,Clyde House ISF,Services to People,Care Payments,29/02/2024,-387.8
Social Care Services,Clyde House ISF,Services to People,Care Payments,29/02/2024,3720.68
Social Care Services,Clyde House ISF,Services to People,Care Payments,29/02/2024,3296.72
Social Care Services,Clyde House ISF,Services to People,Care Payments,29/02/2024,3285.84
Social Care Services,Clyde House ISF,Services to People,Care Payments,29/02/2024,3285.84
Social Care Services,Clyde House ISF,Services to People,Care Payments,29/02/2024,3285.84
Social Care Services,Clyde House ISF,Services to People,Care Payments,29/02/2024,3285.84
Social Care Services,Clyde House ISF,Services to People,Care Payments,29/02/2024,3285.84
Social Care Services,Clyde House ISF,Services to People,Care Payments,29/02/2024,3285.84
Social Care Services,Clyde House ISF,Services to People,Care Payments,29/02/2024,3285.84
Social Care Services,Select Support Partnerships ISF,Services to People,Care Payments,29/02/2024,3892.32
,Romiley Methodist Pre-School,Services to People,Expenses and Allowances,01/03/2024,864.9
Client/Customer (Non-Trade),*Redact - Personal Information,Services to People,Care Payments,01/03/2024,1575.29
Client/Customer (Non-Trade),*Redact - Personal Information,Services to People,Care Payments,01/03/2024,1575.29
Client/Customer (Non-Trade),*Redact - Personal Information,Services to People,Care Payments,01/03/2024,3150.58
Client/Customer (Non-Trade),*Redact - Personal Information,Services to People,Care Payments,01/03/2024,327.24
Client/Customer (Non-Trade),*Redact - Personal Information,Services to People,Care Payments,01/03/2024,245.43
Client/Customer (Non-Trade),*Redact - Personal Information,Services to People,Care Payments,01/03/2024,81.81
Client/Customer (Non-Trade),*Redact - Personal Information,Services to People,Mileage Claims /Allowances,01/03/2024,60.03
Client/Customer (Non-Trade),*Redact - Personal Information,Services to People,Mileage Claims /Allowances,01/03/2024,15.01
Client/Customer (Non-Trade),*Redact - Personal Information,Services to People,Care Payments,01/03/2024,1575.29
Client/Customer (Non-Trade),*Redact - Personal Information,Services to People,Care Payments,01/03/2024,81.81
Client/Customer (Non-Trade),*Redact - Personal Information,Services to People,Care Payments,01/03/2024,40.91
Client/Customer (Non-Trade),*Redact - Personal Information,Services to People,Publicity and Promotion,01/03/2024,4.67
Client/Customer (Non-Trade),*Redact - Personal Information,Services to People,Mileage Claims /Allowances,01/03/2024,7.97
Client/Customer (Non-Trade),*Redact - Personal Information,Services to People,Mileage Claims /Allowances,01/03/2024,7.74
Client/Customer (Non-Trade),*Redact - Personal Information,Services to People,Care Payments,01/03/2024,1575.29
Client/Customer (Non-Trade),*Redact - Personal Information,Services to People,Care Payments,01/03/2024,81.81
Client/Customer (Non-Trade),*Redact - Personal Information,Services to People,Care Payments,01/03/2024,40.91
Client/Customer (Non-Trade),*Redact - Personal Information,Services to People,Publicity and Promotion,01/03/2024,4.68
Client/Customer (Non-Trade),*Redact - Personal Information,Services to People,Mileage Claims /Allowances,01/03/2024,7.97
Client/Customer (Non-Trade),*Redact - Personal Information,Services to People,Mileage Claims /Allowances,01/03/2024,7.74
Client/Customer (Non-Trade),*Redact - Personal Information,Services to People,Care Payments,01/03/2024,226.52
Client/Customer (Non-Trade),*Redact - Personal Information,Services to People,Care Payments,01/03/2024,226.52
Client/Customer (Non-Trade),*Redact - Personal Information,Services to People,Care Payments,01/03/2024,226.52
Client/Customer (Non-Trade),*Redact - Personal Information,Services to People,Care Payments,01/03/2024,16.86
Client/Customer (Non-Trade),*Redact - Personal Information,Services to People,Care Payments,01/03/2024,16.86
Client/Customer (Non-Trade),*Redact - Personal Information,Services to People,Care Payments,01/03/2024,16.86
Client/Customer (Non-Trade),*Redact - Personal Information,Services to People,Mileage Claims /Allowances,01/03/2024,16.42
Client/Customer (Non-Trade),*Redact - Personal Information,Services to People,Mileage Claims /Allowances,01/03/2024,16.42
Client/Customer (Non-Trade),*Redact - Personal Information,Services to People,Mileage Claims /Allowances,01/03/2024,15.01
Client/Customer (Non-Trade),*Redact - Personal Information,Services to People,Care Payments,01/03/2024,422
Client/Customer (Non-Trade),*Redact - Personal Information,Services to People,Care Payments,01/03/2024,397.32
Client/Customer (Non-Trade),*Redact - Personal Information,Services to People,Care Payments,01/03/2024,-20
Client/Customer (Non-Trade),*Redact - Personal Information,Services to People,Care Payments,01/03/2024,397.32
Client/Customer (Non-Trade),*Redact - Personal Information,Services to People,Care Payments,01/03/2024,397.32
Client/Customer (Non-Trade),*Redact - Personal Information,Services to People,Care Payments,01/03/2024,397.32
Client/Customer (Non-Trade),*Redact - Personal Information,Services to People,Care Payments,01/03/2024,-20
Client/Customer (Non-Trade),*Redact - Personal Information,Services to People,Care Payments,01/03/2024,-20
Client/Customer (Non-Trade),*Redact - Personal Information,Services to People,Care Payments,01/03/2024,-20
Client/Customer (Non-Trade),*Redact - Personal Information,Services to People,Care Payments,01/03/2024,272.16
Client/Customer (Non-Trade),*Redact - Personal Information,Services to People,Care Payments,01/03/2024,237.59
Client/Customer (Non-Trade),*Redact - Personal Information,Services to People,Care Payments,01/03/2024,183.78
Client/Customer (Non-Trade),*Redact - Personal Information,Services to People,Care Payments,01/03/2024,167.31
Client/Customer (Non-Trade),*Redact - Personal Information,Services to People,Care Payments,01/03/2024,122.28
Client/Customer (Non-Trade),*Redact - Personal Information,Services to People,Care Payments,01/03/2024,122.28
Client/Customer (Non-Trade),*Redact - Personal Information,Services to People,Care Payments,01/03/2024,629.48
Client/Customer (Non-Trade),*Redact - Personal Information,Services to People,Care Payments,01/03/2024,458.31
Client/Customer (Non-Trade),*Redact - Personal Information,Services to People,Care Payments,01/03/2024,458.31
Client/Customer (Non-Trade),*Redact - Personal Information,Services to People,Care Payments,01/03/2024,272.16
Client/Customer (Non-Trade),*Redact - Personal Information,Services to People,Care Payments,01/03/2024,272.16
Client/Customer (Non-Trade),*Redact - Personal Information,Services to People,Care Payments,01/03/2024,167.31
Client/Customer (Non-Trade),*Redact - Personal Information,Services to People,Care Payments,01/03/2024,167.31
Client/Customer (Non-Trade),*Redact - Personal Information,Services to People,Care Payments,01/03/2024,122.28
Client/Customer (Non-Trade),*Redact - Personal Information,Services to People,Care Payments,01/03/2024,458.31
Client/Customer (Non-Trade),*Redact - Personal Information,Services to People,Care Payments,01/03/2024,209.02
Client/Customer (Non-Trade),*Redact - Personal Information,Services to People,Care Payments,01/03/2024,183.78
Client/Customer (Non-Trade),*Redact - Personal Information,Services to People,Care Payments,01/03/2024,122.28
Client/Customer (Non-Trade),*Redact - Personal Information,Services to People,Care Payments,01/03/2024,122.28
Client/Customer (Non-Trade),*Redact - Personal Information,Services to People,Care Payments,01/03/2024,122.28
Client/Customer (Non-Trade),*Redact - Personal Information,Services to People,Care Payments,01/03/2024,122.28
Client/Customer (Non-Trade),*Redact - Personal Information,Services to People,Care Payments,01/03/2024,69.87
Client/Customer (Non-Trade),*Redact - Personal Information,Services to People,Care Payments,01/03/2024,629.48
Client/Customer (Non-Trade),*Redact - Personal Information,Services to People,Care Payments,01/03/2024,272.16
Client/Customer (Non-Trade),*Redact - Personal Information,Services to People,Care Payments,01/03/2024,629.48
Client/Customer (Non-Trade),*Redact - Personal Information,Services to People,Care Payments,01/03/2024,237.59
Client/Customer (Non-Trade),*Redact - Personal Information,Services to People,Care Payments,01/03/2024,228.42
Client/Customer (Non-Trade),*Redact - Personal Information,Services to People,Care Payments,01/03/2024,228.42
Client/Customer (Non-Trade),*Redact - Personal Information,Services to People,Care Payments,01/03/2024,183.78
Client/Customer (Non-Trade),*Redact - Personal Information,Services to People,Care Payments,01/03/2024,122.28
Client/Customer (Non-Trade),*Redact - Personal Information,Services to People,Care Payments,01/03/2024,272.16
Client/Customer (Non-Trade),*Redact - Personal Information,Services to People,Care Payments,01/03/2024,237.59
Client/Customer (Non-Trade),*Redact - Personal Information,Services to People,Care Payments,01/03/2024,237.59
Client/Customer (Non-Trade),*Redact - Personal Information,Services to People,Care Payments,01/03/2024,228.42
Client/Customer (Non-Trade),*Redact - Personal Information,Services to People,Care Payments,01/03/2024,629.48
Client/Customer (Non-Trade),*Redact - Personal Information,Services to People,Care Payments,01/03/2024,272.16
Client/Customer (Non-Trade),*Redact - Personal Information,Services to People,Care Payments,01/03/2024,458.31
Client/Customer (Non-Trade),*Redact - Personal Information,Services to People,Care Payments,01/03/2024,228.42
Client/Customer (Non-Trade),*Redact - Personal Information,Services to People,Care Payments,01/03/2024,237.59
Client/Customer (Non-Trade),*Redact - Personal Information,Services to People,Care Payments,01/03/2024,237.59
Client/Customer (Non-Trade),*Redact - Personal Information,Services to People,Care Payments,01/03/2024,237.59
Client/Customer (Non-Trade),*Redact - Personal Information,Services to People,Care Payments,01/03/2024,228.42
Client/Customer (Non-Trade),*Redact - Personal Information,Services to People,Care Payments,01/03/2024,228.42
Client/Customer (Non-Trade),*Redact - Personal Information,Services to People,Care Payments,01/03/2024,209.02
Client/Customer (Non-Trade),*Redact - Personal Information,Services to People,Care Payments,01/03/2024,228.42
Client/Customer (Non-Trade),*Redact - Personal Information,Services to People,Care Payments,01/03/2024,183.78
Client/Customer (Non-Trade),*Redact - Personal Information,Services to People,Care Payments,01/03/2024,183.78
Client/Customer (Non-Trade),*Redact - Personal Information,Services to People,Care Payments,01/03/2024,167.31
Client/Customer (Non-Trade),*Redact - Personal Information,Services to People,Care Payments,01/03/2024,272.16
Client/Customer (Non-Trade),*Redact - Personal Information,Services to People,Care Payments,01/03/2024,237.59
Client/Customer (Non-Trade),*Redact - Personal Information,Services to People,Care Payments,01/03/2024,237.59
Client/Customer (Non-Trade),*Redact - Personal Information,Services to People,Care Payments,01/03/2024,228.42
Client/Customer (Non-Trade),*Redact - Personal Information,Services to People,Care Payments,01/03/2024,629.48
Client/Customer (Non-Trade),*Redact - Personal Information,Services to People,Care Payments,01/03/2024,458.31
Client/Customer (Non-Trade),*Redact - Personal Information,Services to People,Care Payments,01/03/2024,272.16
Client/Customer (Non-Trade),*Redact - Personal Information,Services to People,Care Payments,01/03/2024,209.02
Client/Customer (Non-Trade),*Redact - Personal Information,Services to People,Care Payments,01/03/2024,272.16
Client/Customer (Non-Trade),*Redact - Personal Information,Services to People,Care Payments,01/03/2024,272.16
Client/Customer (Non-Trade),*Redact - Personal Information,Services to People,Care Payments,01/03/2024,237.59
Client/Customer (Non-Trade),*Redact - Personal Information,Services to People,Care Payments,01/03/2024,237.59
Client/Customer (Non-Trade),*Redact - Personal Information,Services to People,Care Payments,01/03/2024,164.03
Client/Customer (Non-Trade),*Redact - Personal Information,Services to People,Care Payments,01/03/2024,140.6
Client/Customer (Non-Trade),*Redact - Personal Information,Services to People,Care Payments,01/03/2024,122.28
Client/Customer (Non-Trade),*Redact - Personal Information,Services to People,Care Payments,01/03/2024,104.81
Client/Customer (Non-Trade),*Redact - Personal Information,Services to People,Care Payments,01/03/2024,687.92
Client/Customer (Non-Trade),*Redact - Personal Information,Services to People,Care Payments,01/03/2024,237.59
Client/Customer (Non-Trade),*Redact - Personal Information,Services to People,Care Payments,01/03/2024,228.42
Client/Customer (Non-Trade),*Redact - Personal Information,Services to People,Care Payments,01/03/2024,458.31
Client/Customer (Non-Trade),*Redact - Personal Information,Services to People,Care Payments,01/03/2024,183.78
Client/Customer (Non-Trade),*Redact - Personal Information,Services to People,Care Payments,01/03/2024,126.26
Client/Customer (Non-Trade),*Redact - Personal Information,Services to People,Care Payments,01/03/2024,55
Client/Customer (Non-Trade),*Redact - Personal Information,Services to People,Care Payments,01/03/2024,237.59
Client/Customer (Non-Trade),*Redact - Personal Information,Services to People,Care Payments,01/03/2024,237.59
Client/Customer (Non-Trade),*Redact - Personal Information,Services to People,Care Payments,01/03/2024,114.21
Client/Customer (Non-Trade),*Redact - Personal Information,Services to People,Care Payments,01/03/2024,114.21
Client/Customer (Non-Trade),*Redact - Personal Information,Services to People,Care Payments,01/03/2024,104.51
Client/Customer (Non-Trade),*Redact - Personal Information,Services to People,Care Payments,01/03/2024,104.51
Client/Customer (Non-Trade),*Redact - Personal Information,Services to People,Care Payments,01/03/2024,-15.9
Client/Customer (Non-Trade),*Redact - Personal Information,Services to People,Care Payments,01/03/2024,-24
Client/Customer (Non-Trade),*Redact - Personal Information,Services to People,Care Payments,01/03/2024,-53.32
Client/Customer (Non-Trade),*Redact - Personal Information,Services to People,Care Payments,01/03/2024,-63.77
Client/Customer (Non-Trade),*Redact - Personal Information,Services to People,Care Payments,01/03/2024,272.16
Client/Customer (Non-Trade),*Redact - Personal Information,Services to People,Care Payments,01/03/2024,237.59
Client/Customer (Non-Trade),*Redact - Personal Information,Services to People,Care Payments,01/03/2024,458.31
Client/Customer (Non-Trade),*Redact - Personal Information,Services to People,Care Payments,01/03/2024,183.78
Client/Customer (Non-Trade),*Redact - Personal Information,Services to People,Care Payments,01/03/2024,286.02
Client/Customer (Non-Trade),*Redact - Personal Information,Services to People,Care Payments,01/03/2024,272.16
Client/Customer (Non-Trade),*Redact - Personal Information,Services to People,Care Payments,01/03/2024,237.59
Client/Customer (Non-Trade),*Redact - Personal Information,Services to People,Care Payments,01/03/2024,199.74
Client/Customer (Non-Trade),*Redact - Personal Information,Services to People,Care Payments,01/03/2024,458.31
Client/Customer (Non-Trade),*Redact - Personal Information,Services to People,Care Payments,01/03/2024,278.91
Client/Customer (Non-Trade),*Redact - Personal Information,Services to People,Care Payments,01/03/2024,183.78
Client/Customer (Non-Trade),*Redact - Personal Information,Services to People,Care Payments,01/03/2024,183.78
Client/Customer (Non-Trade),*Redact - Personal Information,Services to People,Care Payments,01/03/2024,164.03
Client/Customer (Non-Trade),*Redact - Personal Information,Services to People,Care Payments,01/03/2024,122.28
Client/Customer (Non-Trade),*Redact - Personal Information,Services to People,Care Payments,01/03/2024,122.28
Client/Customer (Non-Trade),*Redact - Personal Information,Services to People,Care Payments,01/03/2024,237.59
Client/Customer (Non-Trade),*Redact - Personal Information,Services to People,Care Payments,01/03/2024,228.42
Client/Customer (Non-Trade),*Redact - Personal Information,Services to People,Care Payments,01/03/2024,170
Client/Customer (Non-Trade),*Redact - Personal Information,Services to People,Care Payments,01/03/2024,629.48
Client/Customer (Non-Trade),*Redact - Personal Information,Services to People,Care Payments,01/03/2024,228.42
Client/Customer (Non-Trade),*Redact - Personal Information,Services to People,Care Payments,01/03/2024,458.31
Client/Customer (Non-Trade),*Redact - Personal Information,Services to People,Care Payments,01/03/2024,237.59
Client/Customer (Non-Trade),*Redact - Personal Information,Services to People,Care Payments,01/03/2024,228.42
Client/Customer (Non-Trade),*Redact - Personal Information,Services to People,Care Payments,01/03/2024,272.16
Client/Customer (Non-Trade),*Redact - Personal Information,Services to People,Care Payments,01/03/2024,237.59
Client/Customer (Non-Trade),*Redact - Personal Information,Services to People,Care Payments,01/03/2024,237.59
Client/Customer (Non-Trade),*Redact - Personal Information,Services to People,Care Payments,01/03/2024,237.59
Client/Customer (Non-Trade),*Redact - Personal Information,Services to People,Care Payments,01/03/2024,228.42
Client/Customer (Non-Trade),*Redact - Personal Information,Services to People,Care Payments,01/03/2024,228.42
Client/Customer (Non-Trade),*Redact - Personal Information,Services to People,Care Payments,01/03/2024,272.16
Client/Customer (Non-Trade),*Redact - Personal Information,Services to People,Care Payments,01/03/2024,237.59
Client/Customer (Non-Trade),*Redact - Personal Information,Services to People,Care Payments,01/03/2024,237.59
Client/Customer (Non-Trade),*Redact - Personal Information,Services to People,Care Payments,01/03/2024,228.42
Client/Customer (Non-Trade),*Redact - Personal Information,Services to People,Care Payments,01/03/2024,458.31
Client/Customer (Non-Trade),*Redact - Personal Information,Services to People,Care Payments,01/03/2024,458.31
Client/Customer (Non-Trade),*Redact - Personal Information,Services to People,Care Payments,01/03/2024,272.16
Client/Customer (Non-Trade),*Redact - Personal Information,Services to People,Care Payments,01/03/2024,272.16
Client/Customer (Non-Trade),*Redact - Personal Information,Services to People,Care Payments,01/03/2024,642.05
Client/Customer (Non-Trade),*Redact - Personal Information,Services to People,Care Payments,01/03/2024,183.78
Client/Customer (Non-Trade),*Redact - Personal Information,Services to People,Care Payments,01/03/2024,122.28
Client/Customer (Non-Trade),*Redact - Personal Information,Services to People,Care Payments,01/03/2024,74.65
Client/Customer (Non-Trade),*Redact - Personal Information,Services to People,Care Payments,01/03/2024,72.82
Client/Customer (Non-Trade),*Redact - Personal Information,Services to People,Care Payments,01/03/2024,72.82
Client/Customer (Non-Trade),*Redact - Personal Information,Services to People,Care Payments,01/03/2024,66.58
Client/Customer (Non-Trade),*Redact - Personal Information,Services to People,Care Payments,01/03/2024,66.58
Client/Customer (Non-Trade),*Redact - Personal Information,Services to People,Care Payments,01/03/2024,66.58
Client/Customer (Non-Trade),*Redact - Personal Information,Services to People,Care Payments,01/03/2024,46.88
Client/Customer (Non-Trade),*Redact - Personal Information,Services to People,Care Payments,01/03/2024,15.48
Client/Customer (Non-Trade),*Redact - Personal Information,Services to People,Care Payments,01/03/2024,228.42
Client/Customer (Non-Trade),*Redact - Personal Information,Services to People,Care Payments,01/03/2024,228.42
Client/Customer (Non-Trade),*Redact - Personal Information,Services to People,Care Payments,01/03/2024,228.42
Client/Customer (Non-Trade),*Redact - Personal Information,Services to People,Care Payments,01/03/2024,183.78
Client/Customer (Non-Trade),*Redact - Personal Information,Services to People,Care Payments,01/03/2024,-15.9
Client/Customer (Non-Trade),*Redact - Personal Information,Services to People,Care Payments,01/03/2024,-15.9
Client/Customer (Non-Trade),*Redact - Personal Information,Services to People,Care Payments,01/03/2024,-15.9
Client/Customer (Non-Trade),*Redact - Personal Information,Services to People,Care Payments,01/03/2024,-24
Client/Customer (Non-Trade),*Redact - Personal Information,Services to People,Care Payments,01/03/2024,-62.22
Client/Customer (Non-Trade),*Redact - Personal Information,Services to People,Care Payments,01/03/2024,-62.22
Client/Customer (Non-Trade),*Redact - Personal Information,Services to People,Care Payments,01/03/2024,-62.22
Client/Customer (Non-Trade),*Redact - Personal Information,Services to People,Care Payments,01/03/2024,-62.22
Client/Customer (Non-Trade),*Redact - Personal Information,Services to People,Care Payments,01/03/2024,272.16
Client/Customer (Non-Trade),*Redact - Personal Information,Services to People,Care Payments,01/03/2024,237.59
Client/Customer (Non-Trade),*Redact - Personal Information,Services to People,Care Payments,01/03/2024,237.59
Client/Customer (Non-Trade),*Redact - Personal Information,Services to People,Care Payments,01/03/2024,228.42
Client/Customer (Non-Trade),*Redact - Personal Information,Services to People,Care Payments,01/03/2024,167.31
Client/Customer (Non-Trade),*Redact - Personal Information,Services to People,Care Payments,01/03/2024,122.28
Client/Customer (Non-Trade),*Redact - Personal Information,Services to People,Care Payments,01/03/2024,458.31
Client/Customer (Non-Trade),*Redact - Personal Information,Services to People,Care Payments,01/03/2024,237.59
Client/Customer (Non-Trade),*Redact - Personal Information,Services to People,Care Payments,01/03/2024,228.42
Client/Customer (Non-Trade),*Redact - Personal Information,Services to People,Care Payments,01/03/2024,209.02
Client/Customer (Non-Trade),*Redact - Personal Information,Services to People,Care Payments,01/03/2024,167.31
Client/Customer (Non-Trade),*Redact - Personal Information,Services to People,Care Payments,01/03/2024,164.03
Client/Customer (Non-Trade),*Redact - Personal Information,Services to People,Care Payments,01/03/2024,122.28
Client/Customer (Non-Trade),*Redact - Personal Information,Services to People,Care Payments,01/03/2024,122.28
Client/Customer (Non-Trade),*Redact - Personal Information,Services to People,Care Payments,01/03/2024,458.31
Client/Customer (Non-Trade),*Redact - Personal Information,Services to People,Care Payments,01/03/2024,228.42
Client/Customer (Non-Trade),*Redact - Personal Information,Services to People,Care Payments,01/03/2024,237.59
Client/Customer (Non-Trade),*Redact - Personal Information,Services to People,Care Payments,01/03/2024,237.59
Client/Customer (Non-Trade),*Redact - Personal Information,Services to People,Care Payments,01/03/2024,228.42
Client/Customer (Non-Trade),*Redact - Personal Information,Services to People,Care Payments,01/03/2024,209.02
Client/Customer (Non-Trade),*Redact - Personal Information,Services to People,Care Payments,01/03/2024,183.78
Client/Customer (Non-Trade),*Redact - Personal Information,Services to People,Care Payments,01/03/2024,122.28
Client/Customer (Non-Trade),*Redact - Personal Information,Services to People,Care Payments,01/03/2024,237.59
Client/Customer (Non-Trade),*Redact - Personal Information,Services to People,Care Payments,01/03/2024,237.59
Client/Customer (Non-Trade),*Redact - Personal Information,Services to People,Care Payments,01/03/2024,228.42
Client/Customer (Non-Trade),*Redact - Personal Information,Services to People,Care Payments,01/03/2024,209.02
Client/Customer (Non-Trade),*Redact - Personal Information,Services to People,Care Payments,01/03/2024,629.48
Client/Customer (Non-Trade),*Redact - Personal Information,Services to People,Care Payments,01/03/2024,272.16
Client/Customer (Non-Trade),*Redact - Personal Information,Services to People,Care Payments,01/03/2024,237.59
Client/Customer (Non-Trade),*Redact - Personal Information,Services to People,Care Payments,01/03/2024,209.02
Client/Customer (Non-Trade),*Redact - Personal Information,Services to People,Care Payments,01/03/2024,272.16
Client/Customer (Non-Trade),*Redact - Personal Information,Services to People,Care Payments,01/03/2024,237.59
Client/Customer (Non-Trade),*Redact - Personal Information,Services to People,Care Payments,01/03/2024,237.59
Client/Customer (Non-Trade),*Redact - Personal Information,Services to People,Care Payments,01/03/2024,237.59
Client/Customer (Non-Trade),*Redact - Personal Information,Services to People,Care Payments,01/03/2024,228.42
Client/Customer (Non-Trade),*Redact - Personal Information,Services to People,Care Payments,01/03/2024,209.02
Client/Customer (Non-Trade),*Redact - Personal Information,Services to People,Care Payments,01/03/2024,458.31
Client/Customer (Non-Trade),*Redact - Personal Information,Services to People,Care Payments,01/03/2024,272.16
Client/Customer (Non-Trade),*Redact - Personal Information,Services to People,Care Payments,01/03/2024,183.78
Client/Customer (Non-Trade),*Redact - Personal Information,Services to People,Care Payments,01/03/2024,183.78
Client/Customer (Non-Trade),*Redact - Personal Information,Services to People,Care Payments,01/03/2024,122.28
Client/Customer (Non-Trade),*Redact - Personal Information,Services to People,Care Payments,01/03/2024,122.28
Client/Customer (Non-Trade),*Redact - Personal Information,Services to People,Care Payments,01/03/2024,-15.9
Client/Customer (Non-Trade),*Redact - Personal Information,Services to People,Care Payments,01/03/2024,-24
Client/Customer (Non-Trade),*Redact - Personal Information,Services to People,Care Payments,01/03/2024,663.21
Client/Customer (Non-Trade),*Redact - Personal Information,Services to People,Care Payments,01/03/2024,272.16
Client/Customer (Non-Trade),*Redact - Personal Information,Services to People,Care Payments,01/03/2024,674.44
Client/Customer (Non-Trade),*Redact - Personal Information,Services to People,Care Payments,01/03/2024,228.42
Client/Customer (Non-Trade),*Redact - Personal Information,Services to People,Care Payments,01/03/2024,629.48
Client/Customer (Non-Trade),*Redact - Personal Information,Services to People,Care Payments,01/03/2024,272.16
Client/Customer (Non-Trade),*Redact - Personal Information,Services to People,Care Payments,01/03/2024,272.16
Client/Customer (Non-Trade),*Redact - Personal Information,Services to People,Care Payments,01/03/2024,272.16
Client/Customer (Non-Trade),*Redact - Personal Information,Services to People,Care Payments,01/03/2024,228.42
Client/Customer (Non-Trade),*Redact - Personal Information,Services to People,Care Payments,01/03/2024,-15.9
Client/Customer (Non-Trade),*Redact - Personal Information,Services to People,Care Payments,01/03/2024,-15.9
Client/Customer (Non-Trade),*Redact - Personal Information,Services to People,Care Payments,01/03/2024,-51.08
Client/Customer (Non-Trade),*Redact - Personal Information,Services to People,Care Payments,01/03/2024,-51.08
Client/Customer (Non-Trade),*Redact - Personal Information,Services to People,Care Payments,01/03/2024,-56.28
Client/Customer (Non-Trade),*Redact - Personal Information,Services to People,Care Payments,01/03/2024,272.16
Client/Customer (Non-Trade),*Redact - Personal Information,Services to People,Care Payments,01/03/2024,237.59
Client/Customer (Non-Trade),*Redact - Personal Information,Services to People,Care Payments,01/03/2024,237.59
Client/Customer (Non-Trade),*Redact - Personal Information,Services to People,Care Payments,01/03/2024,228.42
Client/Customer (Non-Trade),*Redact - Personal Information,Services to People,Care Payments,01/03/2024,183.78
Client/Customer (Non-Trade),*Redact - Personal Information,Services to People,Care Payments,01/03/2024,122.28
Client/Customer (Non-Trade),*Redact - Personal Information,Services to People,Care Payments,01/03/2024,237.59
Client/Customer (Non-Trade),*Redact - Personal Information,Services to People,Care Payments,01/03/2024,228.42
Client/Customer (Non-Trade),*Redact - Personal Information,Services to People,Care Payments,01/03/2024,183.78
Client/Customer (Non-Trade),*Redact - Personal Information,Services to People,Care Payments,01/03/2024,122.28
Client/Customer (Non-Trade),*Redact - Personal Information,Services to People,Care Payments,01/03/2024,272.16
Client/Customer (Non-Trade),*Redact - Personal Information,Services to People,Care Payments,01/03/2024,237.59
Client/Customer (Non-Trade),*Redact - Personal Information,Services to People,Care Payments,01/03/2024,272.16
Client/Customer (Non-Trade),*Redact - Personal Information,Services to People,Care Payments,01/03/2024,237.59
Client/Customer (Non-Trade),*Redact - Personal Information,Services to People,Care Payments,01/03/2024,272.16
Client/Customer (Non-Trade),*Redact - Personal Information,Services to People,Care Payments,01/03/2024,237.59
Client/Customer (Non-Trade),*Redact - Personal Information,Services to People,Care Payments,01/03/2024,183.78
Client/Customer (Non-Trade),*Redact - Personal Information,Services to People,Care Payments,01/03/2024,122.28
Client/Customer (Non-Trade),*Redact - Personal Information,Services to People,Care Payments,01/03/2024,251.9
Client/Customer (Non-Trade),*Redact - Personal Information,Services to People,Care Payments,01/03/2024,114.21
Client/Customer (Non-Trade),*Redact - Personal Information,Services to People,Care Payments,01/03/2024,114.21
Client/Customer (Non-Trade),*Redact - Personal Information,Services to People,Care Payments,01/03/2024,104.51
Client/Customer (Non-Trade),*Redact - Personal Information,Services to People,Care Payments,01/03/2024,-15.9
Client/Customer (Non-Trade),*Redact - Personal Information,Services to People,Care Payments,01/03/2024,-15.9
Client/Customer (Non-Trade),*Redact - Personal Information,Services to People,Care Payments,01/03/2024,-24
Client/Customer (Non-Trade),*Redact - Personal Information,Services to People,Care Payments,01/03/2024,629.48
Client/Customer (Non-Trade),*Redact - Personal Information,Services to People,Care Payments,01/03/2024,629.48
Client/Customer (Non-Trade),*Redact - Personal Information,Services to People,Care Payments,01/03/2024,183.78
Client/Customer (Non-Trade),*Redact - Personal Information,Services to People,Care Payments,01/03/2024,183.78
Client/Customer (Non-Trade),*Redact - Personal Information,Services to People,Care Payments,01/03/2024,183.78
Client/Customer (Non-Trade),*Redact - Personal Information,Services to People,Care Payments,01/03/2024,122.28
Client/Customer (Non-Trade),*Redact - Personal Information,Services to People,Care Payments,01/03/2024,237.59
Client/Customer (Non-Trade),*Redact - Personal Information,Services to People,Care Payments,01/03/2024,209.02
Client/Customer (Non-Trade),*Redact - Personal Information,Services to People,Care Payments,01/03/2024,174.76
Client/Customer (Non-Trade),*Redact - Personal Information,Services to People,Care Payments,01/03/2024,272.16
Client/Customer (Non-Trade),*Redact - Personal Information,Services to People,Care Payments,01/03/2024,237.59
Client/Customer (Non-Trade),*Redact - Personal Information,Services to People,Care Payments,01/03/2024,237.59
Client/Customer (Non-Trade),*Redact - Personal Information,Services to People,Care Payments,01/03/2024,228.42
Client/Customer (Non-Trade),*Redact - Personal Information,Services to People,Care Payments,01/03/2024,203.65
Client/Customer (Non-Trade),*Redact - Personal Information,Services to People,Care Payments,01/03/2024,195.79
Client/Customer (Non-Trade),*Redact - Personal Information,Services to People,Care Payments,01/03/2024,38.88
Client/Customer (Non-Trade),*Redact - Personal Information,Services to People,Care Payments,01/03/2024,33.94
Client/Customer (Non-Trade),*Redact - Personal Information,Services to People,Care Payments,01/03/2024,458.31
Client/Customer (Non-Trade),*Redact - Personal Information,Services to People,Care Payments,01/03/2024,431.36
Client/Customer (Non-Trade),*Redact - Personal Information,Services to People,Care Payments,01/03/2024,228.42
Client/Customer (Non-Trade),*Redact - Personal Information,Services to People,Care Payments,01/03/2024,93.73
Client/Customer (Non-Trade),*Redact - Personal Information,Services to People,Care Payments,01/03/2024,69.87
Client/Customer (Non-Trade),*Redact - Personal Information,Services to People,Care Payments,01/03/2024,642.05
Client/Customer (Non-Trade),*Redact - Personal Information,Services to People,Care Payments,01/03/2024,39.39
Client/Customer (Non-Trade),*Redact - Personal Information,Services to People,Care Payments,01/03/2024,26.73
Client/Customer (Non-Trade),*Redact - Personal Information,Services to People,Care Payments,01/03/2024,13.13
Client/Customer (Non-Trade),*Redact - Personal Information,Services to People,Care Payments,01/03/2024,237.59
Client/Customer (Non-Trade),*Redact - Personal Information,Services to People,Care Payments,01/03/2024,209.02
Client/Customer (Non-Trade),*Redact - Personal Information,Services to People,Care Payments,01/03/2024,131.27
Client/Customer (Non-Trade),*Redact - Personal Information,Services to People,Care Payments,01/03/2024,87.34
Client/Customer (Non-Trade),*Redact - Personal Information,Services to People,Care Payments,01/03/2024,67.88
Client/Customer (Non-Trade),*Redact - Personal Information,Services to People,Care Payments,01/03/2024,59.72
Client/Customer (Non-Trade),*Redact - Personal Information,Services to People,Care Payments,01/03/2024,629.48
Client/Customer (Non-Trade),*Redact - Personal Information,Services to People,Care Payments,01/03/2024,629.48
Client/Customer (Non-Trade),*Redact - Personal Information,Services to People,Care Payments,01/03/2024,598.66
Client/Customer (Non-Trade),*Redact - Personal Information,Services to People,Care Payments,01/03/2024,272.16
Client/Customer (Non-Trade),*Redact - Personal Information,Services to People,Care Payments,01/03/2024,272.16
Client/Customer (Non-Trade),*Redact - Personal Information,Services to People,Care Payments,01/03/2024,50.58
Client/Customer (Non-Trade),*Redact - Personal Information,Services to People,Care Payments,01/03/2024,228.42
Client/Customer (Non-Trade),*Redact - Personal Information,Services to People,Care Payments,01/03/2024,209.02
Client/Customer (Non-Trade),*Redact - Personal Information,Services to People,Care Payments,01/03/2024,183.78
Client/Customer (Non-Trade),*Redact - Personal Information,Services to People,Care Payments,01/03/2024,183.78
Client/Customer (Non-Trade),*Redact - Personal Information,Services to People,Care Payments,01/03/2024,-15.9
Client/Customer (Non-Trade),*Redact - Personal Information,Services to People,Care Payments,01/03/2024,-15.9
Client/Customer (Non-Trade),*Redact - Personal Information,Services to People,Care Payments,01/03/2024,-15.9
Client/Customer (Non-Trade),*Redact - Personal Information,Services to People,Care Payments,01/03/2024,-19.95
Client/Customer (Non-Trade),*Redact - Personal Information,Services to People,Care Payments,01/03/2024,-19.95
Client/Customer (Non-Trade),*Redact - Personal Information,Services to People,Care Payments,01/03/2024,-19.95
Client/Customer (Non-Trade),*Redact - Personal Information,Services to People,Care Payments,01/03/2024,-19.95
Client/Customer (Non-Trade),*Redact - Personal Information,Services to People,Care Payments,01/03/2024,-24
Client/Customer (Non-Trade),*Redact - Personal Information,Services to People,Care Payments,01/03/2024,272.16
Client/Customer (Non-Trade),*Redact - Personal Information,Services to People,Care Payments,01/03/2024,237.59
Client/Customer (Non-Trade),*Redact - Personal Information,Services to People,Care Payments,01/03/2024,237.59
Client/Customer (Non-Trade),*Redact - Personal Information,Services to People,Care Payments,01/03/2024,237.59
Client/Customer (Non-Trade),*Redact - Personal Information,Services to People,Care Payments,01/03/2024,209.02
Client/Customer (Non-Trade),*Redact - Personal Information,Services to People,Care Payments,01/03/2024,164.03
Client/Customer (Non-Trade),*Redact - Personal Information,Services to People,Care Payments,01/03/2024,122.28
Client/Customer (Non-Trade),*Redact - Personal Information,Services to People,Care Payments,01/03/2024,237.59
Client/Customer (Non-Trade),*Redact - Personal Information,Services to People,Care Payments,01/03/2024,237.59
Client/Customer (Non-Trade),*Redact - Personal Information,Services to People,Care Payments,01/03/2024,228.42
Client/Customer (Non-Trade),*Redact - Personal Information,Services to People,Care Payments,01/03/2024,228.42
Client/Customer (Non-Trade),*Redact - Personal Information,Services to People,Care Payments,01/03/2024,629.48
Client/Customer (Non-Trade),*Redact - Personal Information,Services to People,Care Payments,01/03/2024,237.59
Client/Customer (Non-Trade),*Redact - Personal Information,Services to People,Care Payments,01/03/2024,228.42
Client/Customer (Non-Trade),*Redact - Personal Information,Services to People,Care Payments,01/03/2024,183.78
Client/Customer (Non-Trade),*Redact - Personal Information,Services to People,Care Payments,01/03/2024,164.03
Client/Customer (Non-Trade),*Redact - Personal Information,Services to People,Care Payments,01/03/2024,122.28
Client/Customer (Non-Trade),*Redact - Personal Information,Services to People,Care Payments,01/03/2024,237.59
Client/Customer (Non-Trade),*Redact - Personal Information,Services to People,Care Payments,01/03/2024,228.42
Client/Customer (Non-Trade),*Redact - Personal Information,Services to People,Care Payments,01/03/2024,183.78
Client/Customer (Non-Trade),*Redact - Personal Information,Services to People,Care Payments,01/03/2024,122.28
Client/Customer (Non-Trade),*Redact - Personal Information,Services to People,Care Payments,01/03/2024,183.78
Client/Customer (Non-Trade),*Redact - Personal Information,Services to People,Care Payments,01/03/2024,183.78
Client/Customer (Non-Trade),*Redact - Personal Information,Services to People,Care Payments,01/03/2024,122.28
Client/Customer (Non-Trade),*Redact - Personal Information,Services to People,Care Payments,01/03/2024,122.28
Client/Customer (Non-Trade),*Redact - Personal Information,Services to People,Care Payments,01/03/2024,237.59
Client/Customer (Non-Trade),*Redact - Personal Information,Services to People,Care Payments,01/03/2024,209.02
Client/Customer (Non-Trade),*Redact - Personal Information,Services to People,Care Payments,01/03/2024,183.78
Client/Customer (Non-Trade),*Redact - Personal Information,Services to People,Care Payments,01/03/2024,122.28
Client/Customer (Non-Trade),*Redact - Personal Information,Services to People,Care Payments,01/03/2024,167.31
Client/Customer (Non-Trade),*Redact - Personal Information,Services to People,Care Payments,01/03/2024,164.03
Client/Customer (Non-Trade),*Redact - Personal Information,Services to People,Care Payments,01/03/2024,122.28
Client/Customer (Non-Trade),*Redact - Personal Information,Services to People,Care Payments,01/03/2024,122.28
Client/Customer (Non-Trade),*Redact - Personal Information,Services to People,Care Payments,01/03/2024,237.59
Client/Customer (Non-Trade),*Redact - Personal Information,Services to People,Care Payments,01/03/2024,237.59
Client/Customer (Non-Trade),*Redact - Personal Information,Services to People,Care Payments,01/03/2024,228.42
Client/Customer (Non-Trade),*Redact - Personal Information,Services to People,Care Payments,01/03/2024,228.42
Client/Customer (Non-Trade),*Redact - Personal Information,Services to People,Care Payments,01/03/2024,228.42
Client/Customer (Non-Trade),*Redact - Personal Information,Services to People,Care Payments,01/03/2024,164.03
Client/Customer (Non-Trade),*Redact - Personal Information,Services to People,Care Payments,01/03/2024,164.03
Client/Customer (Non-Trade),*Redact - Personal Information,Services to People,Care Payments,01/03/2024,122.28
Client/Customer (Non-Trade),*Redact - Personal Information,Services to People,Care Payments,01/03/2024,122.28
Client/Customer (Non-Trade),*Redact - Personal Information,Services to People,Care Payments,01/03/2024,272.16
Client/Customer (Non-Trade),*Redact - Personal Information,Services to People,Care Payments,01/03/2024,237.59
Client/Customer (Non-Trade),*Redact - Personal Information,Services to People,Care Payments,01/03/2024,237.59
Client/Customer (Non-Trade),*Redact - Personal Information,Services to People,Care Payments,01/03/2024,228.42
Client/Customer (Non-Trade),*Redact - Personal Information,Services to People,Care Payments,01/03/2024,167.31
Client/Customer (Non-Trade),*Redact - Personal Information,Services to People,Care Payments,01/03/2024,-9.02
Client/Customer (Non-Trade),*Redact - Personal Information,Services to People,Care Payments,01/03/2024,-15.9
Client/Customer (Non-Trade),*Redact - Personal Information,Services to People,Care Payments,01/03/2024,-24
Client/Customer (Non-Trade),*Redact - Personal Information,Services to People,Care Payments,01/03/2024,-59.95
Client/Customer (Non-Trade),*Redact - Personal Information,Services to People,Care Payments,01/03/2024,183.78
Client/Customer (Non-Trade),*Redact - Personal Information,Services to People,Care Payments,01/03/2024,183.78
Client/Customer (Non-Trade),*Redact - Personal Information,Services to People,Care Payments,01/03/2024,183.78
Client/Customer (Non-Trade),*Redact - Personal Information,Services to People,Care Payments,01/03/2024,122.28
Client/Customer (Non-Trade),*Redact - Personal Information,Services to People,Care Payments,01/03/2024,122.28
Client/Customer (Non-Trade),*Redact - Personal Information,Services to People,Care Payments,01/03/2024,122.28
Client/Customer (Non-Trade),*Redact - Personal Information,Services to People,Care Payments,01/03/2024,1000
Client/Customer (Non-Trade),*Redact - Personal Information,Services to People,Care Payments,01/03/2024,629.48
Client/Customer (Non-Trade),*Redact - Personal Information,Services to People,Care Payments,01/03/2024,272.16
Client/Customer (Non-Trade),*Redact - Personal Information,Services to People,Care Payments,01/03/2024,237.59
Client/Customer (Non-Trade),*Redact - Personal Information,Services to People,Care Payments,01/03/2024,228.42
Client/Customer (Non-Trade),*Redact - Personal Information,Services to People,Care Payments,01/03/2024,228.42
Client/Customer (Non-Trade),*Redact - Personal Information,Services to People,Care Payments,01/03/2024,629.48
Client/Customer (Non-Trade),*Redact - Personal Information,Services to People,Care Payments,01/03/2024,629.48
Client/Customer (Non-Trade),*Redact - Personal Information,Services to People,Care Payments,01/03/2024,228.42
Client/Customer (Non-Trade),*Redact - Personal Information,Services to People,Care Payments,01/03/2024,228.42
Client/Customer (Non-Trade),*Redact - Personal Information,Services to People,Care Payments,01/03/2024,237.59
Client/Customer (Non-Trade),*Redact - Personal Information,Services to People,Care Payments,01/03/2024,237.59
Client/Customer (Non-Trade),*Redact - Personal Information,Services to People,Care Payments,01/03/2024,209.02
Client/Customer (Non-Trade),*Redact - Personal Information,Services to People,Care Payments,01/03/2024,209.02
Client/Customer (Non-Trade),*Redact - Personal Information,Services to People,Care Payments,01/03/2024,-15.9
Client/Customer (Non-Trade),*Redact - Personal Information,Services to People,Care Payments,01/03/2024,-24
Client/Customer (Non-Trade),*Redact - Personal Information,Services to People,Care Payments,01/03/2024,932.12
Client/Customer (Non-Trade),*Redact - Personal Information,Services to People,Care Payments,01/03/2024,272.16
Client/Customer (Non-Trade),*Redact - Personal Information,Services to People,Care Payments,01/03/2024,237.59
Client/Customer (Non-Trade),*Redact - Personal Information,Services to People,Care Payments,01/03/2024,237.59
Client/Customer (Non-Trade),*Redact - Personal Information,Services to People,Care Payments,01/03/2024,237.59
Client/Customer (Non-Trade),*Redact - Personal Information,Services to People,Care Payments,01/03/2024,228.42
Client/Customer (Non-Trade),*Redact - Personal Information,Services to People,Care Payments,01/03/2024,209.02
Client/Customer (Non-Trade),*Redact - Personal Information,Services to People,Care Payments,01/03/2024,183.78
Client/Customer (Non-Trade),*Redact - Personal Information,Services to People,Care Payments,01/03/2024,122.28
Client/Customer (Non-Trade),*Redact - Personal Information,Services to People,Care Payments,01/03/2024,272.16
Client/Customer (Non-Trade),*Redact - Personal Information,Services to People,Care Payments,01/03/2024,237.59
Client/Customer (Non-Trade),*Redact - Personal Information,Services to People,Care Payments,01/03/2024,237.59
Client/Customer (Non-Trade),*Redact - Personal Information,Services to People,Care Payments,01/03/2024,209.02
Client/Customer (Non-Trade),*Redact - Personal Information,Services to People,Care Payments,01/03/2024,-15.9
Client/Customer (Non-Trade),*Redact - Personal Information,Services to People,Care Payments,01/03/2024,-24
Client/Customer (Non-Trade),*Redact - Personal Information,Services to People,Care Payments,01/03/2024,-117.15
Client/Customer (Non-Trade),*Redact - Personal Information,Services to People,Care Payments,01/03/2024,237.59
Client/Customer (Non-Trade),*Redact - Personal Information,Services to People,Care Payments,01/03/2024,209.02
Client/Customer (Non-Trade),*Redact - Personal Information,Services to People,Care Payments,01/03/2024,183.78
Client/Customer (Non-Trade),*Redact - Personal Information,Services to People,Care Payments,01/03/2024,122.28
Client/Customer (Non-Trade),*Redact - Personal Information,Services to People,Care Payments,01/03/2024,237.59
Client/Customer (Non-Trade),*Redact - Personal Information,Services to People,Care Payments,01/03/2024,228.42
Client/Customer (Non-Trade),*Redact - Personal Information,Services to People,Care Payments,01/03/2024,183.78
Client/Customer (Non-Trade),*Redact - Personal Information,Services to People,Care Payments,01/03/2024,122.28
Client/Customer (Non-Trade),*Redact - Personal Information,Services to People,Care Payments,01/03/2024,458.31
Client/Customer (Non-Trade),*Redact - Personal Information,Services to People,Care Payments,01/03/2024,209.02
Client/Customer (Non-Trade),*Redact - Personal Information,Services to People,Care Payments,01/03/2024,-24
Client/Customer (Non-Trade),*Redact - Personal Information,Services to People,Care Payments,01/03/2024,-51.02
Client/Customer (Non-Trade),*Redact - Personal Information,Services to People,Care Payments,01/03/2024,237.59
Client/Customer (Non-Trade),*Redact - Personal Information,Services to People,Care Payments,01/03/2024,237.59
Client/Customer (Non-Trade),*Redact - Personal Information,Services to People,Care Payments,01/03/2024,228.42
Client/Customer (Non-Trade),*Redact - Personal Information,Services to People,Care Payments,01/03/2024,209.02
Client/Customer (Non-Trade),*Redact - Personal Information,Services to People,Care Payments,01/03/2024,200
Client/Customer (Non-Trade),*Redact - Personal Information,Services to People,Care Payments,01/03/2024,156.5
Client/Customer (Non-Trade),*Redact - Personal Information,Services to People,Care Payments,01/03/2024,122.56
Client/Customer (Non-Trade),*Redact - Personal Information,Services to People,Care Payments,01/03/2024,122.56
Client/Customer (Non-Trade),*Redact - Personal Information,Services to People,Care Payments,01/03/2024,122.56
Client/Customer (Non-Trade),*Redact - Personal Information,Services to People,Care Payments,01/03/2024,4.69
Client/Customer (Non-Trade),*Redact - Personal Information,Services to People,Care Payments,01/03/2024,228.42
Client/Customer (Non-Trade),*Redact - Personal Information,Services to People,Care Payments,01/03/2024,183.78
Client/Customer (Non-Trade),*Redact - Personal Information,Services to People,Care Payments,01/03/2024,183.78
Client/Customer (Non-Trade),*Redact - Personal Information,Services to People,Care Payments,01/03/2024,-15.9
Client/Customer (Non-Trade),*Redact - Personal Information,Services to People,Care Payments,01/03/2024,-15.9
Client/Customer (Non-Trade),*Redact - Personal Information,Services to People,Care Payments,01/03/2024,-24
Client/Customer (Non-Trade),*Redact - Personal Information,Services to People,Care Payments,01/03/2024,272.16
Client/Customer (Non-Trade),*Redact - Personal Information,Services to People,Care Payments,01/03/2024,237.59
Client/Customer (Non-Trade),*Redact - Personal Information,Services to People,Care Payments,01/03/2024,237.59
Client/Customer (Non-Trade),*Redact - Personal Information,Services to People,Care Payments,01/03/2024,228.42
Client/Customer (Non-Trade),*Redact - Personal Information,Services to People,Care Payments,01/03/2024,183.78
Client/Customer (Non-Trade),*Redact - Personal Information,Services to People,Care Payments,01/03/2024,164.03
Client/Customer (Non-Trade),*Redact - Personal Information,Services to People,Care Payments,01/03/2024,122.28
Client/Customer (Non-Trade),*Redact - Personal Information,Services to People,Care Payments,01/03/2024,122.28
Client/Customer (Non-Trade),*Redact - Personal Information,Services to People,Care Payments,01/03/2024,272.16
Client/Customer (Non-Trade),*Redact - Personal Information,Services to People,Care Payments,01/03/2024,237.59
Client/Customer (Non-Trade),*Redact - Personal Information,Services to People,Care Payments,01/03/2024,629.48
Client/Customer (Non-Trade),*Redact - Personal Information,Services to People,Care Payments,01/03/2024,272.16
Client/Customer (Non-Trade),*Redact - Personal Information,Services to People,Care Payments,01/03/2024,183.78
Client/Customer (Non-Trade),*Redact - Personal Information,Services to People,Care Payments,01/03/2024,183.78
Client/Customer (Non-Trade),*Redact - Personal Information,Services to People,Care Payments,01/03/2024,122.28
Client/Customer (Non-Trade),*Redact - Personal Information,Services to People,Care Payments,01/03/2024,122.28
Client/Customer (Non-Trade),*Redact - Personal Information,Services to People,Care Payments,01/03/2024,183.78
Client/Customer (Non-Trade),*Redact - Personal Information,Services to People,Care Payments,01/03/2024,183.78
Client/Customer (Non-Trade),*Redact - Personal Information,Services to People,Care Payments,01/03/2024,122.28
Client/Customer (Non-Trade),*Redact - Personal Information,Services to People,Care Payments,01/03/2024,122.28
Client/Customer (Non-Trade),*Redact - Personal Information,Services to People,Care Payments,01/03/2024,458.31
Client/Customer (Non-Trade),*Redact - Personal Information,Services to People,Care Payments,01/03/2024,167.31
Client/Customer (Non-Trade),*Redact - Personal Information,Services to People,Care Payments,01/03/2024,183.78
Client/Customer (Non-Trade),*Redact - Personal Information,Services to People,Care Payments,01/03/2024,167.31
Client/Customer (Non-Trade),*Redact - Personal Information,Services to People,Care Payments,01/03/2024,122.28
Client/Customer (Non-Trade),*Redact - Personal Information,Services to People,Care Payments,01/03/2024,122.28
Client/Customer (Non-Trade),*Redact - Personal Information,Services to People,Care Payments,01/03/2024,458.31
Client/Customer (Non-Trade),*Redact - Personal Information,Services to People,Care Payments,01/03/2024,237.59
Client/Customer (Non-Trade),*Redact - Personal Information,Services to People,Care Payments,01/03/2024,228.42
Client/Customer (Non-Trade),*Redact - Personal Information,Services to People,Care Payments,01/03/2024,209.02
Client/Customer (Non-Trade),*Redact - Personal Information,Services to People,Care Payments,01/03/2024,183.78
Client/Customer (Non-Trade),*Redact - Personal Information,Services to People,Care Payments,01/03/2024,183.78
Client/Customer (Non-Trade),*Redact - Personal Information,Services to People,Care Payments,01/03/2024,122.28
Client/Customer (Non-Trade),*Redact - Personal Information,Services to People,Care Payments,01/03/2024,122.28
Client/Customer (Non-Trade),*Redact - Personal Information,Services to People,Care Payments,01/03/2024,237.59
Client/Customer (Non-Trade),*Redact - Personal Information,Services to People,Care Payments,01/03/2024,209.02
Client/Customer (Non-Trade),*Redact - Personal Information,Services to People,Care Payments,01/03/2024,183.78
Client/Customer (Non-Trade),*Redact - Personal Information,Services to People,Care Payments,01/03/2024,122.28
Client/Customer (Non-Trade),*Redact - Personal Information,Services to People,Care Payments,01/03/2024,458.31
Client/Customer (Non-Trade),*Redact - Personal Information,Services to People,Care Payments,01/03/2024,458.31
Client/Customer (Non-Trade),*Redact - Personal Information,Services to People,Care Payments,01/03/2024,183.78
Client/Customer (Non-Trade),*Redact - Personal Information,Services to People,Care Payments,01/03/2024,183.78
Client/Customer (Non-Trade),*Redact - Personal Information,Services to People,Care Payments,01/03/2024,164.03
Client/Customer (Non-Trade),*Redact - Personal Information,Services to People,Care Payments,01/03/2024,122.28
Client/Customer (Non-Trade),*Redact - Personal Information,Services to People,Care Payments,01/03/2024,237.59
Client/Customer (Non-Trade),*Redact - Personal Information,Services to People,Care Payments,01/03/2024,228.42
Client/Customer (Non-Trade),*Redact - Personal Information,Services to People,Care Payments,01/03/2024,183.78
Client/Customer (Non-Trade),*Redact - Personal Information,Services to People,Care Payments,01/03/2024,122.28
Client/Customer (Non-Trade),*Redact - Personal Information,Services to People,Care Payments,01/03/2024,237.59
Client/Customer (Non-Trade),*Redact - Personal Information,Services to People,Care Payments,01/03/2024,237.59
Client/Customer (Non-Trade),*Redact - Personal Information,Services to People,Care Payments,01/03/2024,228.42
Client/Customer (Non-Trade),*Redact - Personal Information,Services to People,Care Payments,01/03/2024,183.78
Client/Customer (Non-Trade),*Redact - Personal Information,Services to People,Care Payments,01/03/2024,122.28
Client/Customer (Non-Trade),*Redact - Personal Information,Services to People,Care Payments,01/03/2024,108
Client/Customer (Non-Trade),*Redact - Personal Information,Services to People,Care Payments,01/03/2024,629.48
Client/Customer (Non-Trade),*Redact - Personal Information,Services to People,Care Payments,01/03/2024,228.42
Client/Customer (Non-Trade),*Redact - Personal Information,Services to People,Care Payments,01/03/2024,665
Client/Customer (Non-Trade),*Redact - Personal Information,Services to People,Care Payments,01/03/2024,53.47
Client/Customer (Non-Trade),*Redact - Personal Information,Services to People,Care Payments,01/03/2024,39.39
Client/Customer (Non-Trade),*Redact - Personal Information,Services to People,Care Payments,01/03/2024,39.39
Client/Customer (Non-Trade),*Redact - Personal Information,Services to People,Care Payments,01/03/2024,29.86
Client/Customer (Non-Trade),*Redact - Personal Information,Services to People,Care Payments,01/03/2024,26.26
Client/Customer (Non-Trade),*Redact - Personal Information,Services to People,Care Payments,01/03/2024,14.93
Client/Customer (Non-Trade),*Redact - Personal Information,Services to People,Care Payments,01/03/2024,665
Client/Customer (Non-Trade),*Redact - Personal Information,Services to People,Care Payments,01/03/2024,50
Client/Customer (Non-Trade),*Redact - Personal Information,Services to People,Care Payments,01/03/2024,272.16
Client/Customer (Non-Trade),*Redact - Personal Information,Services to People,Care Payments,01/03/2024,237.59
Client/Customer (Non-Trade),*Redact - Personal Information,Services to People,Care Payments,01/03/2024,237.59
Client/Customer (Non-Trade),*Redact - Personal Information,Services to People,Care Payments,01/03/2024,209.02
Client/Customer (Non-Trade),*Redact - Personal Information,Services to People,Care Payments,01/03/2024,272.16
Client/Customer (Non-Trade),*Redact - Personal Information,Services to People,Care Payments,01/03/2024,272.16
Client/Customer (Non-Trade),*Redact - Personal Information,Services to People,Care Payments,01/03/2024,237.59
Client/Customer (Non-Trade),*Redact - Personal Information,Services to People,Care Payments,01/03/2024,183.78
Client/Customer (Non-Trade),*Redact - Personal Information,Services to People,Care Payments,01/03/2024,183.78
Client/Customer (Non-Trade),*Redact - Personal Information,Services to People,Care Payments,01/03/2024,122.28
Client/Customer (Non-Trade),*Redact - Personal Information,Services to People,Care Payments,01/03/2024,122.28
Client/Customer (Non-Trade),*Redact - Personal Information,Services to People,Care Payments,01/03/2024,25
Client/Customer (Non-Trade),*Redact - Personal Information,Services to People,Care Payments,01/03/2024,25
Client/Customer (Non-Trade),*Redact - Personal Information,Services to People,Care Payments,01/03/2024,318.5
Client/Customer (Non-Trade),*Redact - Personal Information,Services to People,Care Payments,01/03/2024,183.78
Client/Customer (Non-Trade),*Redact - Personal Information,Services to People,Care Payments,01/03/2024,167.31
Client/Customer (Non-Trade),*Redact - Personal Information,Services to People,Care Payments,01/03/2024,122.28
Client/Customer (Non-Trade),*Redact - Personal Information,Services to People,Care Payments,01/03/2024,122.28
Client/Customer (Non-Trade),*Redact - Personal Information,Services to People,Care Payments,01/03/2024,183.78
Client/Customer (Non-Trade),*Redact - Personal Information,Services to People,Care Payments,01/03/2024,167.31
Client/Customer (Non-Trade),*Redact - Personal Information,Services to People,Care Payments,01/03/2024,122.28
Client/Customer (Non-Trade),*Redact - Personal Information,Services to People,Care Payments,01/03/2024,122.28
Client/Customer (Non-Trade),*Redact - Personal Information,Services to People,Care Payments,01/03/2024,272.16
Client/Customer (Non-Trade),*Redact - Personal Information,Services to People,Care Payments,01/03/2024,237.59
Client/Customer (Non-Trade),*Redact - Personal Information,Services to People,Care Payments,01/03/2024,237.59
Client/Customer (Non-Trade),*Redact - Personal Information,Services to People,Care Payments,01/03/2024,237.59
Client/Customer (Non-Trade),*Redact - Personal Information,Services to People,Care Payments,01/03/2024,228.42
Client/Customer (Non-Trade),*Redact - Personal Information,Services to People,Care Payments,01/03/2024,209.02
Client/Customer (Non-Trade),*Redact - Personal Information,Services to People,Care Payments,01/03/2024,80.67
Client/Customer (Non-Trade),*Redact - Personal Information,Services to People,Care Payments,01/03/2024,237.59
Client/Customer (Non-Trade),*Redact - Personal Information,Services to People,Care Payments,01/03/2024,209.02
Client/Customer (Non-Trade),*Redact - Personal Information,Services to People,Care Payments,01/03/2024,143.95
Client/Customer (Non-Trade),*Redact - Personal Information,Services to People,Care Payments,01/03/2024,64.5
Client/Customer (Non-Trade),*Redact - Personal Information,Services to People,Care Payments,01/03/2024,272.16
Client/Customer (Non-Trade),*Redact - Personal Information,Services to People,Care Payments,01/03/2024,237.59
Client/Customer (Non-Trade),*Redact - Personal Information,Services to People,Care Payments,01/03/2024,183.78
Client/Customer (Non-Trade),*Redact - Personal Information,Services to People,Care Payments,01/03/2024,183.78
Client/Customer (Non-Trade),*Redact - Personal Information,Services to People,Care Payments,01/03/2024,122.28
Client/Customer (Non-Trade),*Redact - Personal Information,Services to People,Care Payments,01/03/2024,122.28
Client/Customer (Non-Trade),*Redact - Personal Information,Services to People,Care Payments,01/03/2024,272.16
Client/Customer (Non-Trade),*Redact - Personal Information,Services to People,Care Payments,01/03/2024,272.16
Client/Customer (Non-Trade),*Redact - Personal Information,Services to People,Care Payments,01/03/2024,237.59
Client/Customer (Non-Trade),*Redact - Personal Information,Services to People,Care Payments,01/03/2024,237.59
Client/Customer (Non-Trade),*Redact - Personal Information,Services to People,Care Payments,01/03/2024,209.02
Client/Customer (Non-Trade),*Redact - Personal Information,Services to People,Care Payments,01/03/2024,183.78
Client/Customer (Non-Trade),*Redact - Personal Information,Services to People,Care Payments,01/03/2024,167.31
Client/Customer (Non-Trade),*Redact - Personal Information,Services to People,Care Payments,01/03/2024,122.28
Client/Customer (Non-Trade),*Redact - Personal Information,Services to People,Care Payments,01/03/2024,122.28
Client/Customer (Non-Trade),*Redact - Personal Information,Services to People,Care Payments,01/03/2024,167.31
Client/Customer (Non-Trade),*Redact - Personal Information,Services to People,Care Payments,01/03/2024,167.31
Client/Customer (Non-Trade),*Redact - Personal Information,Services to People,Care Payments,01/03/2024,122.28
Client/Customer (Non-Trade),*Redact - Personal Information,Services to People,Care Payments,01/03/2024,122.28
Client/Customer (Non-Trade),*Redact - Personal Information,Services to People,Care Payments,01/03/2024,183.78
Client/Customer (Non-Trade),*Redact - Personal Information,Services to People,Care Payments,01/03/2024,183.78
Client/Customer (Non-Trade),*Redact - Personal Information,Services to People,Care Payments,01/03/2024,167.31
Client/Customer (Non-Trade),*Redact - Personal Information,Services to People,Care Payments,01/03/2024,122.28
Client/Customer (Non-Trade),*Redact - Personal Information,Services to People,Care Payments,01/03/2024,122.28
Client/Customer (Non-Trade),*Redact - Personal Information,Services to People,Care Payments,01/03/2024,122.28
Client/Customer (Non-Trade),*Redact - Personal Information,Services to People,Care Payments,01/03/2024,696
Client/Customer (Non-Trade),*Redact - Personal Information,Services to People,Care Payments,01/03/2024,629.48
Client/Customer (Non-Trade),*Redact - Personal Information,Services to People,Care Payments,01/03/2024,629.48
Client/Customer (Non-Trade),*Redact - Personal Information,Services to People,Care Payments,01/03/2024,183.78
Client/Customer (Non-Trade),*Redact - Personal Information,Services to People,Care Payments,01/03/2024,183.78
Client/Customer (Non-Trade),*Redact - Personal Information,Services to People,Care Payments,01/03/2024,183.78
Client/Customer (Non-Trade),*Redact - Personal Information,Services to People,Care Payments,01/03/2024,183.78
Client/Customer (Non-Trade),*Redact - Personal Information,Services to People,Care Payments,01/03/2024,122.28
Client/Customer (Non-Trade),*Redact - Personal Information,Services to People,Care Payments,01/03/2024,122.28
Client/Customer (Non-Trade),*Redact - Personal Information,Services to People,Care Payments,01/03/2024,183.78
Client/Customer (Non-Trade),*Redact - Personal Information,Services to People,Care Payments,01/03/2024,167.31
Client/Customer (Non-Trade),*Redact - Personal Information,Services to People,Care Payments,01/03/2024,122.28
Client/Customer (Non-Trade),*Redact - Personal Information,Services to People,Care Payments,01/03/2024,122.28
Client/Customer (Non-Trade),*Redact - Personal Information,Services to People,Care Payments,01/03/2024,183.78
Client/Customer (Non-Trade),*Redact - Personal Information,Services to People,Care Payments,01/03/2024,122.28
Client/Customer (Non-Trade),*Redact - Personal Information,Services to People,Care Payments,01/03/2024,70.3
Client/Customer (Non-Trade),*Redact - Personal Information,Services to People,Care Payments,01/03/2024,52.41
Client/Customer (Non-Trade),*Redact - Personal Information,Services to People,Care Payments,01/03/2024,46.87
Client/Customer (Non-Trade),*Redact - Personal Information,Services to People,Care Payments,01/03/2024,34.94
Client/Customer (Non-Trade),*Redact - Personal Information,Services to People,Care Payments,01/03/2024,237.59
Client/Customer (Non-Trade),*Redact - Personal Information,Services to People,Care Payments,01/03/2024,237.59
Client/Customer (Non-Trade),*Redact - Personal Information,Services to People,Care Payments,01/03/2024,228.42
Client/Customer (Non-Trade),*Redact - Personal Information,Services to People,Care Payments,01/03/2024,209.02
Client/Customer (Non-Trade),*Redact - Personal Information,Services to People,Care Payments,01/03/2024,629.48
Client/Customer (Non-Trade),*Redact - Personal Information,Services to People,Care Payments,01/03/2024,228.42
Client/Customer (Non-Trade),*Redact - Personal Information,Services to People,Care Payments,01/03/2024,237.59
Client/Customer (Non-Trade),*Redact - Personal Information,Services to People,Care Payments,01/03/2024,228.42
Client/Customer (Non-Trade),*Redact - Personal Information,Services to People,Care Payments,01/03/2024,183.78
Client/Customer (Non-Trade),*Redact - Personal Information,Services to People,Care Payments,01/03/2024,122.28
Client/Customer (Non-Trade),*Redact - Personal Information,Services to People,Care Payments,01/03/2024,183.78
Client/Customer (Non-Trade),*Redact - Personal Information,Services to People,Care Payments,01/03/2024,183.78
Client/Customer (Non-Trade),*Redact - Personal Information,Services to People,Care Payments,01/03/2024,122.28
Client/Customer (Non-Trade),*Redact - Personal Information,Services to People,Care Payments,01/03/2024,122.28
Client/Customer (Non-Trade),*Redact - Personal Information,Services to People,Care Payments,01/03/2024,290.45
Client/Customer (Non-Trade),*Redact - Personal Information,Services to People,Care Payments,01/03/2024,290.45
Client/Customer (Non-Trade),*Redact - Personal Information,Services to People,Care Payments,01/03/2024,183.78
Client/Customer (Non-Trade),*Redact - Personal Information,Services to People,Care Payments,01/03/2024,122.28
Client/Customer (Non-Trade),*Redact - Personal Information,Services to People,Care Payments,01/03/2024,109.3
Client/Customer (Non-Trade),*Redact - Personal Information,Services to People,Care Payments,01/03/2024,87.44
Client/Customer (Non-Trade),*Redact - Personal Information,Services to People,Care Payments,01/03/2024,87.44
Client/Customer (Non-Trade),*Redact - Personal Information,Services to People,Care Payments,01/03/2024,237.59
Client/Customer (Non-Trade),*Redact - Personal Information,Services to People,Care Payments,01/03/2024,237.59
Client/Customer (Non-Trade),*Redact - Personal Information,Services to People,Care Payments,01/03/2024,228.42
Client/Customer (Non-Trade),*Redact - Personal Information,Services to People,Care Payments,01/03/2024,209.02
Client/Customer (Non-Trade),*Redact - Personal Information,Services to People,Care Payments,01/03/2024,254.2
Client/Customer (Non-Trade),*Redact - Personal Information,Services to People,Care Payments,01/03/2024,244.35
Client/Customer (Non-Trade),*Redact - Personal Information,Services to People,Care Payments,01/03/2024,194.64
Client/Customer (Non-Trade),*Redact - Personal Information,Services to People,Care Payments,01/03/2024,183.78
Client/Customer (Non-Trade),*Redact - Personal Information,Services to People,Care Payments,01/03/2024,122.28
Client/Customer (Non-Trade),*Redact - Personal Information,Services to People,Care Payments,01/03/2024,183.78
Client/Customer (Non-Trade),*Redact - Personal Information,Services to People,Care Payments,01/03/2024,183.78
Client/Customer (Non-Trade),*Redact - Personal Information,Services to People,Care Payments,01/03/2024,183.78
Client/Customer (Non-Trade),*Redact - Personal Information,Services to People,Care Payments,01/03/2024,122.28
Client/Customer (Non-Trade),*Redact - Personal Information,Services to People,Care Payments,01/03/2024,122.28
Client/Customer (Non-Trade),*Redact - Personal Information,Services to People,Care Payments,01/03/2024,183.78
Client/Customer (Non-Trade),*Redact - Personal Information,Services to People,Care Payments,01/03/2024,164.03
Client/Customer (Non-Trade),*Redact - Personal Information,Services to People,Care Payments,01/03/2024,122.28
Client/Customer (Non-Trade),*Redact - Personal Information,Services to People,Care Payments,01/03/2024,122.28
Client/Customer (Non-Trade),*Redact - Personal Information,Services to People,Care Payments,01/03/2024,183.78
Client/Customer (Non-Trade),*Redact - Personal Information,Services to People,Care Payments,01/03/2024,183.78
Client/Customer (Non-Trade),*Redact - Personal Information,Services to People,Care Payments,01/03/2024,183.78
Client/Customer (Non-Trade),*Redact - Personal Information,Services to People,Care Payments,01/03/2024,183.78
Client/Customer (Non-Trade),*Redact - Personal Information,Services to People,Care Payments,01/03/2024,122.28
Client/Customer (Non-Trade),*Redact - Personal Information,Services to People,Care Payments,01/03/2024,122.28
Client/Customer (Non-Trade),*Redact - Personal Information,Services to People,Care Payments,01/03/2024,122.28
Client/Customer (Non-Trade),*Redact - Personal Information,Services to People,Care Payments,01/03/2024,122.28
Client/Customer (Non-Trade),*Redact - Personal Information,Services to People,Care Payments,01/03/2024,105.02
Client/Customer (Non-Trade),*Redact - Personal Information,Services to People,Care Payments,01/03/2024,105.02
Client/Customer (Non-Trade),*Redact - Personal Information,Services to People,Care Payments,01/03/2024,69.87
Client/Customer (Non-Trade),*Redact - Personal Information,Services to People,Care Payments,01/03/2024,69.87
Client/Customer (Non-Trade),*Redact - Personal Information,Services to People,Care Payments,01/03/2024,-105.02
Client/Customer (Non-Trade),*Redact - Personal Information,Services to People,Care Payments,01/03/2024,-105.02
Client/Customer (Non-Trade),*Redact - Personal Information,Services to People,Care Payments,01/03/2024,-183.78
Client/Customer (Non-Trade),*Redact - Personal Information,Services to People,Care Payments,01/03/2024,-183.78
Client/Customer (Non-Trade),*Redact - Personal Information,Services to People,Care Payments,01/03/2024,446.61
Client/Customer (Non-Trade),*Redact - Personal Information,Services to People,Care Payments,01/03/2024,237.59
Client/Customer (Non-Trade),*Redact - Personal Information,Services to People,Care Payments,01/03/2024,209.02
Client/Customer (Non-Trade),*Redact - Personal Information,Services to People,Care Payments,01/03/2024,167.31
Client/Customer (Non-Trade),*Redact - Personal Information,Services to People,Care Payments,01/03/2024,164.03
Client/Customer (Non-Trade),*Redact - Personal Information,Services to People,Care Payments,01/03/2024,164.03
Client/Customer (Non-Trade),*Redact - Personal Information,Services to People,Care Payments,01/03/2024,122.28
Client/Customer (Non-Trade),*Redact - Personal Information,Services to People,Care Payments,01/03/2024,122.28
Client/Customer (Non-Trade),*Redact - Personal Information,Services to People,Care Payments,01/03/2024,122.28
Client/Customer (Non-Trade),*Redact - Personal Information,Services to People,Care Payments,01/03/2024,350
Client/Customer (Non-Trade),*Redact - Personal Information,Services to People,Care Payments,01/03/2024,228.42
Client/Customer (Non-Trade),*Redact - Personal Information,Services to People,Care Payments,01/03/2024,209.02
Welfare Services,Time Specialist Support,Services to People,Care Payments,01/03/2024,1332.72
Welfare Services,Time Specialist Support,Services to People,Care Payments,01/03/2024,394.88
Welfare Services,Time Specialist Support,Services to People,Care Payments,01/03/2024,222.12
Welfare Services,Time Specialist Support,Services to People,Care Payments,01/03/2024,789.76
Welfare Services,Time Specialist Support,Services to People,Care Payments,01/03/2024,394.88
Welfare Services,Time Specialist Support,Services to People,Care Payments,01/03/2024,345.52
Childcare Provision,Little Giggles Private Day Nursery,Services to People,Care Payments,01/03/2024,1117.65
Childcare Provision,Marple Childcare Company Limited,Services to People,Expenses and Allowances,01/03/2024,2747.68
Childcare Provision,Little Peeps UK Ltd,Services to People,Expenses and Allowances,01/03/2024,1825.9
Childcare Provision,Aukland House Nursery,Services to People,Care Payments,01/03/2024,1202.75
Client/Customer (Non-Trade),*Redact - Personal Information,Services to People,Care Payments,01/03/2024,600
Building Services,Eric Massey Carpets,Services to People,Care Payments,01/03/2024,719
Foster Care,Alpha Plus Fostering Ltd,Services to People,Care Payments,04/03/2024,3296.97
Childcare Provision,Brookfield Care (NW) Ltd,Services to People,Care Payments,04/03/2024,14700
Childcare Provision,CHOICES HOME FOR CHILDREN LTD,Services to People,Care Payments,04/03/2024,16488.57
Childcare Provision,CHOICES HOME FOR CHILDREN LTD,Services to People,Care Payments,04/03/2024,16488.57
Childcare Provision,CHOICES HOME FOR CHILDREN LTD,Services to People,Care Payments,04/03/2024,1137.14
Education Services,CHARNWOOD NURSERY SCHOOL,Services to People,Expenses and Allowances,04/03/2024,3580
Education Services,CHARNWOOD NURSERY SCHOOL,Services to People,Fees and Charges,04/03/2024,26253.33
Foster Care,CORE ASSETS FOSTERING,Services to People,Care Payments,04/03/2024,4189.3
Foster Care,CORE ASSETS FOSTERING,Services to People,Care Payments,04/03/2024,4189.3
Foster Care,CORE ASSETS FOSTERING,Services to People,Care Payments,04/03/2024,3929.75
Foster Care,CORE ASSETS FOSTERING,Services to People,Care Payments,04/03/2024,3704.46
Foster Care,CORE ASSETS FOSTERING,Services to People,Care Payments,04/03/2024,3653.75
Foster Care,CORE ASSETS FOSTERING,Services to People,Care Payments,04/03/2024,-93.71
Foster Care,CORE ASSETS FOSTERING,Services to People,Care Payments,04/03/2024,-209.46
Foster Care,CORE ASSETS FOSTERING,Services to People,Care Payments,04/03/2024,-209.46
Foster Care,CORE ASSETS FOSTERING,Services to People,Care Payments,04/03/2024,-505.06
Foster Care,FOSTERING SOLUTIONS LTD,Services to People,Care Payments,04/03/2024,3774.39
Foster Care,FOSTERING SOLUTIONS LTD,Services to People,Care Payments,04/03/2024,3223.1
Foster Care,FOSTERING SOLUTIONS LTD,Services to People,Care Payments,04/03/2024,122.9
Foster Care,FOSTERING SOLUTIONS LTD,Services to People,Care Payments,04/03/2024,63.97
Foster Care,FOSTERING SOLUTIONS LTD,Services to People,Care Payments,04/03/2024,-12.76
Foster Care,FOSTERING SOLUTIONS LTD,Services to People,Care Payments,04/03/2024,-161.16
Foster Care,FOSTERING SOLUTIONS LTD,Services to People,Care Payments,04/03/2024,-188.72
Childcare Provision,Fresh Start Independence Project,Services to People,Care Payments,04/03/2024,10872
Childcare Provision,Fresh Start Independence Project,Services to People,Care Payments,04/03/2024,8640
Childcare Provision,Fresh Start Independence Project,Services to People,Care Payments,04/03/2024,8294
Childcare Provision,Fresh Start Independence Project,Services to People,Care Payments,04/03/2024,6835.71
Childcare Provision,Fresh Start Independence Project,Services to People,Care Payments,04/03/2024,4350
Childcare Provision,Fresh Start Independence Project,Services to People,Care Payments,04/03/2024,2009.29
Childcare Provision,Fresh Start Independence Project,Services to People,Care Payments,04/03/2024,2009.29
Childcare Provision,Fresh Start Independence Project,Services to People,Care Payments,04/03/2024,2009.29
Childcare Provision,Fresh Start Independence Project,Services to People,Care Payments,04/03/2024,2009.29
Childcare Provision,Fresh Start Independence Project,Services to People,Care Payments,04/03/2024,2009.29
Childcare Provision,Fresh Start Independence Project,Services to People,Care Payments,04/03/2024,1385.71
Childcare Provision,Fresh Start Independence Project,Services to People,Care Payments,04/03/2024,970
Childcare Provision,Fresh Start Independence Project,Services to People,Care Payments,04/03/2024,900.71
Childcare Provision,Fresh Start Independence Project,Services to People,Care Payments,04/03/2024,623.57
Childcare Provision,Fresh Start Independence Project,Services to People,Care Payments,04/03/2024,1802.14
Childcare Provision,Fresh Start Independence Project,Services to People,Care Payments,04/03/2024,1802.14
Childcare Provision,Fresh Start Independence Project,Services to People,Care Payments,04/03/2024,1802.14
Childcare Provision,Fresh Start Independence Project,Services to People,Care Payments,04/03/2024,1802.14
Childcare Provision,Fresh Start Independence Project,Services to People,Care Payments,04/03/2024,994.29
Childcare Provision,Cambian Group plc,Services to People,Care Payments,04/03/2024,24650
Foster Care,PARALLEL PARENTS (FF),Services to People,Care Payments,04/03/2024,4355.92
Foster Care,PARALLEL PARENTS (FF),Services to People,Care Payments,04/03/2024,4059.59
Social Care Services,PROGRESSIVE CARE LTD,Services to People,Care Payments,04/03/2024,16467.86
Social Care Services,Seashell Trust,Services to People,Fees and Charges,04/03/2024,11468.05
Social Care Services,Seashell Trust,Services to People,Fees and Charges,04/03/2024,11373.11
Social Care Services,Seashell Trust,Services to People,Fees and Charges,04/03/2024,10092.86
Social Care Services,Seashell Trust,Services to People,Fees and Charges,04/03/2024,8322.11
Social Care Services,Seashell Trust,Services to People,Fees and Charges,04/03/2024,7697.45
Social Care Services,Seashell Trust,Services to People,Fees and Charges,04/03/2024,7520.4
Social Care Services,Seashell Trust,Services to People,Fees and Charges,04/03/2024,7183.91
Social Care Services,Seashell Trust,Services to People,Fees and Charges,04/03/2024,7015.32
Social Care Services,Seashell Trust,Services to People,Fees and Charges,04/03/2024,6483.06
Social Care Services,Seashell Trust,Services to People,Fees and Charges,04/03/2024,6354.45
Social Care Services,Seashell Trust,Services to People,Fees and Charges,04/03/2024,6285.47
Social Care Services,Seashell Trust,Services to People,Fees and Charges,04/03/2024,6120.63
Social Care Services,Seashell Trust,Services to People,Care Payments,04/03/2024,34776.26
School (Other Local Authority),ST JOHN VIANNEY,Services to People,Fees and Charges,04/03/2024,2272.73
School (Other Local Authority),ST JOHN VIANNEY,Services to People,Fees and Charges,04/03/2024,1818.18
School (Other Local Authority),ST JOHN VIANNEY,Services to People,Fees and Charges,04/03/2024,1818.18
School (Other Local Authority),ST JOHN VIANNEY,Services to People,Fees and Charges,04/03/2024,1818.18
School (Other Local Authority),ST JOHN VIANNEY,Services to People,Fees and Charges,04/03/2024,1818.18
School (Other Local Authority),ST JOHN VIANNEY,Services to People,Fees and Charges,04/03/2024,1818.18
School (Other Local Authority),ST JOHN VIANNEY,Services to People,Fees and Charges,04/03/2024,1818.18
School (Other Local Authority),ST JOHN VIANNEY,Services to People,Fees and Charges,04/03/2024,1818.18
School (Other Local Authority),ST JOHN VIANNEY,Services to People,Fees and Charges,04/03/2024,1818.18
School (Other Local Authority),ST JOHN VIANNEY,Services to People,Fees and Charges,04/03/2024,1818.18
Foster Care,SWIIS FOSTERCARE LTD,Services to People,Care Payments,04/03/2024,3924.53
Foster Care,SWIIS FOSTERCARE LTD,Services to People,Care Payments,04/03/2024,3657.52
Foster Care,SWIIS FOSTERCARE LTD,Services to People,Care Payments,04/03/2024,3347.43
Foster Care,SWIIS FOSTERCARE LTD,Services to People,Care Payments,04/03/2024,3347.43
Foster Care,SWIIS FOSTERCARE LTD,Services to People,Care Payments,04/03/2024,3347.43
Foster Care,SWIIS FOSTERCARE LTD,Services to People,Care Payments,04/03/2024,-509.57
Foster Care,SWIIS FOSTERCARE LTD,Services to People,Care Payments,04/03/2024,-637.38
Foster Care,SWIIS FOSTERCARE LTD,Services to People,Care Payments,04/03/2024,-638
Foster Care,SWIIS FOSTERCARE LTD,Services to People,Care Payments,04/03/2024,-808.89
Childcare Provision,CARE HAVEN (UK) T/A PENARTH HOUSE,Services to People,Care Payments,04/03/2024,16571.43
Childcare Provision,CARE HAVEN (UK) T/A PENARTH HOUSE,Services to People,Care Payments,04/03/2024,9000
Childcare Provision,CARE HAVEN (UK) T/A PENARTH HOUSE,Services to People,Care Payments,04/03/2024,5920
Childcare Provision,CARE HAVEN (UK) T/A PENARTH HOUSE,Services to People,Care Payments,04/03/2024,4500
Foster Care,CAPSTONE FOSTER CARE,Services to People,Care Payments,04/03/2024,6528.02
Childcare Provision,CARE TODAY CHILDRENS SERVICE,Services to People,Care Payments,04/03/2024,18795.23
Childcare Provision,CARE TODAY CHILDRENS SERVICE,Services to People,Care Payments,04/03/2024,12051.74
Childcare Provision,CARE TODAY CHILDRENS SERVICE,Services to People,Care Payments,04/03/2024,6649.23
Social Care Services,THE TOGETHER TRUST CENTRE,Services to People,Fees and Charges,04/03/2024,29395
Social Care Services,THE TOGETHER TRUST CENTRE,Services to People,Fees and Charges,04/03/2024,4372.5
Social Care Services,THE TOGETHER TRUST CENTRE,Services to People,Fees and Charges,04/03/2024,4372.5
Social Care Services,THE TOGETHER TRUST CENTRE,Services to People,Fees and Charges,04/03/2024,4372.5
Social Care Services,THE TOGETHER TRUST CENTRE,Services to People,Fees and Charges,04/03/2024,4366.51
Social Care Services,THE TOGETHER TRUST CENTRE,Services to People,Fees and Charges,04/03/2024,4366.49
Social Care Services,THE TOGETHER TRUST CENTRE,Services to People,Fees and Charges,04/03/2024,4366.49
Social Care Services,THE TOGETHER TRUST CENTRE,Services to People,Fees and Charges,04/03/2024,4354.17
Social Care Services,THE TOGETHER TRUST CENTRE,Services to People,Fees and Charges,04/03/2024,4354.17
Social Care Services,THE TOGETHER TRUST CENTRE,Services to People,Fees and Charges,04/03/2024,4005.83
Social Care Services,THE TOGETHER TRUST CENTRE,Services to People,Fees and Charges,04/03/2024,4005.83
Social Care Services,THE TOGETHER TRUST CENTRE,Services to People,Fees and Charges,04/03/2024,4005.83
Social Care Services,THE TOGETHER TRUST CENTRE,Services to People,Fees and Charges,04/03/2024,4005.83
Social Care Services,THE TOGETHER TRUST CENTRE,Services to People,Fees and Charges,04/03/2024,4005.83
Social Care Services,THE TOGETHER TRUST CENTRE,Services to People,Fees and Charges,04/03/2024,3021.34
Social Care Services,THE TOGETHER TRUST CENTRE,Services to People,Fees and Charges,04/03/2024,3021.34
Social Care Services,THE TOGETHER TRUST CENTRE,Services to People,Fees and Charges,04/03/2024,7034.67
Social Care Services,THE TOGETHER TRUST CENTRE,Services to People,Fees and Charges,04/03/2024,6525.56
Social Care Services,THE TOGETHER TRUST CENTRE,Services to People,Fees and Charges,04/03/2024,6525.56
Social Care Services,THE TOGETHER TRUST CENTRE,Services to People,Fees and Charges,04/03/2024,6201.33
Social Care Services,THE TOGETHER TRUST CENTRE,Services to People,Fees and Charges,04/03/2024,6201.33
Social Care Services,THE TOGETHER TRUST CENTRE,Services to People,Fees and Charges,04/03/2024,6201.33
Social Care Services,THE TOGETHER TRUST CENTRE,Services to People,Fees and Charges,04/03/2024,6201.33
Social Care Services,THE TOGETHER TRUST CENTRE,Services to People,Fees and Charges,04/03/2024,6140.51
Social Care Services,THE TOGETHER TRUST CENTRE,Services to People,Fees and Charges,04/03/2024,6140.51
Social Care Services,THE TOGETHER TRUST CENTRE,Services to People,Fees and Charges,04/03/2024,6140.51
Social Care Services,THE TOGETHER TRUST CENTRE,Services to People,Fees and Charges,04/03/2024,6107.7
Social Care Services,THE TOGETHER TRUST CENTRE,Services to People,Fees and Charges,04/03/2024,6107.7
Social Care Services,THE TOGETHER TRUST CENTRE,Services to People,Fees and Charges,04/03/2024,6095.84
Social Care Services,THE TOGETHER TRUST CENTRE,Services to People,Fees and Charges,04/03/2024,6087.87
Social Care Services,THE TOGETHER TRUST CENTRE,Services to People,Fees and Charges,04/03/2024,6038.01
Social Care Services,THE TOGETHER TRUST CENTRE,Services to People,Fees and Charges,04/03/2024,6038.01
Social Care Services,THE TOGETHER TRUST CENTRE,Services to People,Fees and Charges,04/03/2024,5996.17
Social Care Services,THE TOGETHER TRUST CENTRE,Services to People,Fees and Charges,04/03/2024,5692.17
Social Care Services,THE TOGETHER TRUST CENTRE,Services to People,Fees and Charges,04/03/2024,5692.17
Social Care Services,THE TOGETHER TRUST CENTRE,Services to People,Fees and Charges,04/03/2024,5692.17
Social Care Services,THE TOGETHER TRUST CENTRE,Services to People,Fees and Charges,04/03/2024,5631.37
Social Care Services,THE TOGETHER TRUST CENTRE,Services to People,Fees and Charges,04/03/2024,5631.37
Social Care Services,THE TOGETHER TRUST CENTRE,Services to People,Fees and Charges,04/03/2024,5631.37
Social Care Services,THE TOGETHER TRUST CENTRE,Services to People,Fees and Charges,04/03/2024,5529.59
Social Care Services,THE TOGETHER TRUST CENTRE,Services to People,Fees and Charges,04/03/2024,5162.84
Social Care Services,THE TOGETHER TRUST CENTRE,Services to People,Fees and Charges,04/03/2024,2456.2
Social Care Services,THE TOGETHER TRUST CENTRE,Services to People,Care Payments,04/03/2024,20300
Social Care Services,THE TOGETHER TRUST CENTRE,Services to People,Care Payments,04/03/2024,18071.43
Social Care Services,THE TOGETHER TRUST CENTRE,Services to People,Care Payments,04/03/2024,18071.43
Social Care Services,THE TOGETHER TRUST CENTRE,Services to People,Care Payments,04/03/2024,17607.14
Social Care Services,THE TOGETHER TRUST CENTRE,Services to People,Care Payments,04/03/2024,17607.14
Social Care Services,THE TOGETHER TRUST CENTRE,Services to People,Care Payments,04/03/2024,13000
Social Care Services,THE TOGETHER TRUST CENTRE,Services to People,Care Payments,04/03/2024,10150
Social Care Services,THE TOGETHER TRUST CENTRE,Services to People,Care Payments,04/03/2024,10150
Social Care Services,THE TOGETHER TRUST CENTRE,Services to People,Care Payments,04/03/2024,2357.14
Social Care Services,THE TOGETHER TRUST CENTRE,Services to People,Care Payments,04/03/2024,2357.14
Social Care Services,THE TOGETHER TRUST CENTRE,Services to People,Care Payments,04/03/2024,2019.64
Social Care Services,THE TOGETHER TRUST CENTRE,Services to People,Care Payments,04/03/2024,2019.64
Social Care Services,THE TOGETHER TRUST CENTRE,Services to People,Care Payments,04/03/2024,343.75
Social Care Services,THE TOGETHER TRUST CENTRE,Services to People,Care Payments,04/03/2024,343.75
Foster Care,THE NATIONAL FOSTERING AGENCY,Services to People,Care Payments,04/03/2024,3638.01
Foster Care,THE NATIONAL FOSTERING AGENCY,Services to People,Care Payments,04/03/2024,2634.42
Foster Care,THE NATIONAL FOSTERING AGENCY,Services to People,Care Payments,04/03/2024,909.51
Foster Care,THE NATIONAL FOSTERING AGENCY,Services to People,Care Payments,04/03/2024,341.07
Foster Care,THE NATIONAL FOSTERING AGENCY,Services to People,Care Payments,04/03/2024,250.9
Foster Care,THE NATIONAL FOSTERING AGENCY,Services to People,Care Payments,04/03/2024,-72.76
Social Care Services,Compass Fostering North Limited,Services to People,Care Payments,04/03/2024,3778.45
Social Care Services,Compass Fostering North Limited,Services to People,Care Payments,04/03/2024,1980.08
Social Care Services,Rite Directions (Foundation ac),Services to People,Care Payments,04/03/2024,5737.86
Client/Customer (Non-Trade),*Redact - Personal Information,Services to People,Care Payments,04/03/2024,3767.27
Client/Customer (Non-Trade),*Redact - Personal Information,Services to People,Care Payments,04/03/2024,-188.36
Education Services,SMS Coaching Limited,Services to People,Fees and Charges,04/03/2024,8085
Education Services,SMS Coaching Limited,Services to People,Fees and Charges,04/03/2024,6405
Education Services,SMS Coaching Limited,Services to People,Fees and Charges,04/03/2024,6405
Education Services,SMS Coaching Limited,Services to People,Fees and Charges,04/03/2024,6405
Education Services,SMS Coaching Limited,Services to People,Fees and Charges,04/03/2024,6405
Education Services,SMS Coaching Limited,Services to People,Fees and Charges,04/03/2024,6069
Education Services,SMS Coaching Limited,Services to People,Fees and Charges,04/03/2024,6069
Education Services,SMS Coaching Limited,Services to People,Fees and Charges,04/03/2024,5229
Property Management,Intact Projects Ltd,Services to People,Care Payments,04/03/2024,3832.14
Property Management,Intact Projects Ltd,Services to People,Care Payments,04/03/2024,3832.14
Property Management,Intact Projects Ltd,Services to People,Care Payments,04/03/2024,3832.14
Property Management,Intact Projects Ltd,Services to People,Care Payments,04/03/2024,3293.57
Property Management,Intact Projects Ltd,Services to People,Care Payments,04/03/2024,3293.57
Property Management,Intact Projects Ltd,Services to People,Care Payments,04/03/2024,3293.57
Property Management,Intact Projects Ltd,Services to People,Care Payments,04/03/2024,3293.57
Property Management,Intact Projects Ltd,Services to People,Care Payments,04/03/2024,3293.57
Property Management,Intact Projects Ltd,Services to People,Care Payments,04/03/2024,3293.57
Property Management,Intact Projects Ltd,Services to People,Care Payments,04/03/2024,3293.57
Property Management,Intact Projects Ltd,Services to People,Care Payments,04/03/2024,3293.57
Property Management,Intact Projects Ltd,Services to People,Care Payments,04/03/2024,3171.43
Property Management,Intact Projects Ltd,Services to People,Care Payments,04/03/2024,1982.14
Property Management,Intact Projects Ltd,Services to People,Care Payments,04/03/2024,1982.14
Property Management,Intact Projects Ltd,Services to People,Care Payments,04/03/2024,198.21
Social Care Services,Social care Services (The Deacons),Services to People,Care Payments,04/03/2024,4142.86
Social Care Services,Social care Services (The Deacons),Services to People,Care Payments,04/03/2024,3563.81
Social Care Services,Social care Services (The Deacons),Services to People,Care Payments,04/03/2024,-389.57
Social Care Services,Social care Services (The Deacons),Services to People,Care Payments,04/03/2024,38114.29
Social Care Services,Social care Services (The Deacons),Services to People,Care Payments,04/03/2024,19885.71
Social Care Services,Social care Services (The Deacons),Services to People,Care Payments,04/03/2024,19885.71
Social Care Services,Social care Services (The Deacons),Services to People,Care Payments,04/03/2024,8134.5
Social Care Services,Social care Services (The Deacons),Services to People,Care Payments,04/03/2024,3450
Social Care Services,Social care Services (The Deacons),Services to People,Care Payments,04/03/2024,2900
Social Care Services,Social care Services (The Deacons),Services to People,Fees and Charges,04/03/2024,621.43
Childcare Provision,Enabling Futures,Services to People,Care Payments,04/03/2024,17819.46
Childcare Provision,Enabling Futures,Services to People,Care Payments,04/03/2024,17819.46
Childcare Provision,Enabling Futures,Services to People,Care Payments,04/03/2024,16675
Childcare Provision,Enabling Futures,Services to People,Care Payments,04/03/2024,16669.82
Childcare Provision,Enabling Futures,Services to People,Care Payments,04/03/2024,4598.57
Childcare Provision,Enabling Futures,Services to People,Care Payments,04/03/2024,814.86
Childcare Provision,Enabling Futures,Services to People,Care Payments,04/03/2024,814.86
Childcare Provision,Enabling Futures,Services to People,Care Payments,04/03/2024,762.29
Childcare Provision,Enabling Futures,Services to People,Care Payments,04/03/2024,639.99
Childcare Provision,Enabling Futures,Services to People,Care Payments,04/03/2024,210.29
Childcare Provision,Enabling Futures,Services to People,Care Payments,04/03/2024,-4598.57
Childcare Provision,Enabling Futures,Services to People,Care Payments,04/03/2024,-17819.46
Childcare Provision,Enabling Futures,Services to People,Care Payments,04/03/2024,-17819.46
Childcare Provision,New Horizons(Stockport)Ltd,Services to People,Care Payments,04/03/2024,10662.39
Childcare Provision,New Horizons(Stockport)Ltd,Services to People,Care Payments,04/03/2024,10662.39
Childcare Provision,New Horizons(Stockport)Ltd,Services to People,Care Payments,04/03/2024,8348.16
Childcare Provision,New Horizons(Stockport)Ltd,Services to People,Care Payments,04/03/2024,2456.14
Childcare Provision,New Horizons(Stockport)Ltd,Services to People,Care Payments,04/03/2024,2456.14
Foster Care,Three Circles Fostering Ltd,Services to People,Care Payments,04/03/2024,4032.45
Foster Care,Three Circles Fostering Ltd,Services to People,Care Payments,04/03/2024,3303.22
Foster Care,Three Circles Fostering Ltd,Services to People,Care Payments,04/03/2024,3027.77
Foster Care,Three Circles Fostering Ltd,Services to People,Care Payments,04/03/2024,1238.71
Foster Care,Three Circles Fostering Ltd,Services to People,Care Payments,04/03/2024,922.37
Foster Care,Three Circles Fostering Ltd,Services to People,Care Payments,04/03/2024,817.55
Foster Care,Three Circles Fostering Ltd,Services to People,Care Payments,04/03/2024,749.36
Foster Care,Three Circles Fostering Ltd,Services to People,Care Payments,04/03/2024,556.2
Foster Care,Three Circles Fostering Ltd,Services to People,Care Payments,04/03/2024,444.96
Foster Care,Three Circles Fostering Ltd,Services to People,Care Payments,04/03/2024,132.12
Foster Care,Three Circles Fostering Ltd,Services to People,Care Payments,04/03/2024,105.7
Foster Care,Three Circles Fostering Ltd,Services to People,Care Payments,04/03/2024,-22.25
Foster Care,Three Circles Fostering Ltd,Services to People,Care Payments,04/03/2024,-27.81
Foster Care,Three Circles Fostering Ltd,Services to People,Care Payments,04/03/2024,-30.28
Foster Care,Three Circles Fostering Ltd,Services to People,Care Payments,04/03/2024,-33.03
Social Care Services,Horizon Care & Education Group Ltd,Services to People,Fees and Charges,04/03/2024,9609.6
Social Care Services,Horizon Care & Education Group Ltd,Services to People,Care Payments,04/03/2024,30389.35
Foster Care,Foster Careline Ltd,Services to People,Care Payments,04/03/2024,3854.1
Foster Care,Foster Careline Ltd,Services to People,Care Payments,04/03/2024,-385.41
Social Care Services,Hexagon Care Services,Services to People,Care Payments,04/03/2024,16778.57
Social Care Services,Inicio Group Ltd,Services to People,Care Payments,04/03/2024,5365
Social Care Services,Safehouses Fostering,Services to People,Care Payments,04/03/2024,3910.65
Social Care Services,Safehouses Fostering,Services to People,Care Payments,04/03/2024,3693.15
Social Care Services,Safehouses Fostering,Services to People,Care Payments,04/03/2024,2164.95
Social Care Services,Safehouses Fostering,Services to People,Care Payments,04/03/2024,1541.14
Social Care Services,Safehouses Fostering,Services to People,Care Payments,04/03/2024,307.25
Social Care Services,Safehouses Fostering,Services to People,Care Payments,04/03/2024,307.25
Social Care Services,Safehouses Fostering,Services to People,Care Payments,04/03/2024,307.25
Social Care Services,Safehouses Fostering,Services to People,Care Payments,04/03/2024,307.25
Social Care Services,Safehouses Fostering,Services to People,Care Payments,04/03/2024,297.34
Social Care Services,Safehouses Fostering,Services to People,Care Payments,04/03/2024,297.34
Social Care Services,Safehouses Fostering,Services to People,Care Payments,04/03/2024,83.61
Social Care Services,Safehouses Fostering,Services to People,Care Payments,04/03/2024,83.61
Social Care Services,Safehouses Fostering,Services to People,Care Payments,04/03/2024,83.61
Social Care Services,Safehouses Fostering,Services to People,Care Payments,04/03/2024,83.61
Social Care Services,Safehouses Fostering,Services to People,Care Payments,04/03/2024,83.61
Social Care Services,Safehouses Fostering,Services to People,Care Payments,04/03/2024,80.91
Social Care Services,Safehouses Fostering,Services to People,Care Payments,04/03/2024,80.91
Social Care Services,Safehouses Fostering,Services to People,Care Payments,04/03/2024,80.91
Social Care Services,Safehouses Fostering,Services to People,Care Payments,04/03/2024,18.88
Social Care Services,Safehouses Fostering,Services to People,Care Payments,04/03/2024,9.91
Social Care Services,Safehouses Fostering,Services to People,Care Payments,04/03/2024,-13.49
Social Care Services,Safehouses Fostering,Services to People,Care Payments,04/03/2024,-80.73
Social Care Services,Safehouses Fostering,Services to People,Care Payments,04/03/2024,-184.65
Social Care Services,Safehouses Fostering,Services to People,Care Payments,04/03/2024,-211.09
Social Care Services,Safehouses Fostering,Services to People,Care Payments,04/03/2024,-391.07
Social Care Services,Safehouses Fostering,Services to People,Care Payments,04/03/2024,-404.55
Social Care Services,Safehouses Fostering,Services to People,Care Payments,04/03/2024,-404.55
Social Care Services,Safehouses Fostering,Services to People,Care Payments,04/03/2024,-418.04
Social Care Services,Safehouses Fostering,Services to People,Care Payments,04/03/2024,-418.04
Social Care Services,Safehouses Fostering,Services to People,Care Payments,04/03/2024,-418.04
Social Care Services,Safehouses Fostering,Services to People,Care Payments,04/03/2024,-418.04
Social Care Services,Courtyard Care Ltd,Services to People,Care Payments,04/03/2024,9371.64
Social Care Services,Courtyard Care Ltd,Services to People,Care Payments,04/03/2024,9371.6
Social Care Services,ROC Northwest Ltd,Services to People,Care Payments,04/03/2024,13981.65
Social Care Services,Oakfields,Services to People,Care Payments,04/03/2024,12428.57
Social Care Services,Oakfields,Services to People,Care Payments,04/03/2024,10336.43
Social Care Services,Olive Branch Fostering Ltd,Services to People,Care Payments,04/03/2024,2895.86
Social Care Services,Olive Branch Fostering Ltd,Services to People,Care Payments,04/03/2024,2895.86
Social Care Services,Olive Branch Fostering Ltd,Services to People,Care Payments,04/03/2024,-28.96
Social Care Services,Olive Branch Fostering Ltd,Services to People,Care Payments,04/03/2024,-144.79
Social Care Services,Olive Branch Fostering Ltd,Services to People,Care Payments,04/03/2024,-144.79
Social Care Services,Fusion Fostering Ltd,Services to People,Care Payments,04/03/2024,3959.74
Social Care Services,Fusion Fostering Ltd,Services to People,Care Payments,04/03/2024,3730.63
Social Care Services,Fusion Fostering Ltd,Services to People,Care Payments,04/03/2024,2464.13
Social Care Services,Fusion Fostering Ltd,Services to People,Care Payments,04/03/2024,-373.06
Social Care Services,Fusion Fostering Ltd,Services to People,Care Payments,04/03/2024,-729.47
Social Care Services,Bedspace Resource Ltd,Services to People,Care Payments,04/03/2024,5489.29
Social Care Services,Bedspace Resource Ltd,Services to People,Care Payments,04/03/2024,5489.29
Social Care Services,Bedspace Resource Ltd,Services to People,Care Payments,04/03/2024,5489.29
Social Care Services,Bedspace Resource Ltd,Services to People,Care Payments,04/03/2024,1646.79
Social Care Services,Bedspace Resource Ltd,Services to People,Care Payments,04/03/2024,1646.79
Social Care Services,Bedspace Resource Ltd,Services to People,Care Payments,04/03/2024,1185.69
Social Care Services,Bedspace Resource Ltd,Services to People,Care Payments,04/03/2024,592.84
Social Care Services,Bedspace Resource Ltd,Services to People,Care Payments,04/03/2024,1643
Social Care Services,Bedspace Resource Ltd,Services to People,Care Payments,04/03/2024,1643
Social Care Services,Bedspace Resource Ltd,Services to People,Care Payments,04/03/2024,1643
Social Care Services,Bedspace Resource Ltd,Services to People,Care Payments,04/03/2024,1590
Social Care Services,Bedspace Resource Ltd,Services to People,Care Payments,04/03/2024,1537
Social Care Services,Bedspace Resource Ltd,Services to People,Care Payments,04/03/2024,1537
Social Care Services,Bedspace Resource Ltd,Services to People,Care Payments,04/03/2024,1537
Social Care Services,Bedspace Resource Ltd,Services to People,Care Payments,04/03/2024,1497.64
Social Care Services,Bedspace Resource Ltd,Services to People,Care Payments,04/03/2024,1060
Social Care Services,Bedspace Resource Ltd,Services to People,Care Payments,04/03/2024,592.84
Social Care Services,Bedspace Resource Ltd,Services to People,Care Payments,04/03/2024,592.84
Social Care Services,Bedspace Resource Ltd,Services to People,Care Payments,04/03/2024,355.71
Social Care Services,Bedspace Resource Ltd,Services to People,Care Payments,04/03/2024,355.71
Social Care Services,Bedspace Resource Ltd,Services to People,Care Payments,04/03/2024,-1135.71
Social Care Services,Bedspace Resource Ltd,Services to People,Care Payments,04/03/2024,-1703.57
Social Care Services,Bedspace Resource Ltd,Services to People,Care Payments,04/03/2024,-1760.36
Social Care Services,Bedspace Resource Ltd,Services to People,Care Payments,04/03/2024,-1760.36
Social Care Services,Bedspace Resource Ltd,Services to People,Care Payments,04/03/2024,-1760.36
Social Care Services,Stepping Stone Projects,Services to People,Care Payments,04/03/2024,1702.09
Social Care Services,Stepping Stone Projects,Services to People,Care Payments,04/03/2024,1418.68
Social Care Services,Stepping Stone Projects,Services to People,Care Payments,04/03/2024,1346.43
Social Care Services,Stepping Stone Projects,Services to People,Care Payments,04/03/2024,652.5
Social Care Services,Stepping Stone Projects,Services to People,Care Payments,04/03/2024,652.5
Social Care Services,Stepping Stone Projects,Services to People,Care Payments,04/03/2024,548.93
Social Care Services,Keys PCE Ltd,Services to People,Care Payments,04/03/2024,18181.22
Social Care Services,Cuffe and Lacey,Services to People,Care Payments,04/03/2024,2849.56
Social Care Services,Independent Together Limited,Services to People,Care Payments,04/03/2024,2900
Social Care Services,Independent Together Limited,Services to People,Care Payments,04/03/2024,1087.5
Social Care Services,Independent Together Limited,Services to People,Care Payments,04/03/2024,100
Social Care Services,Independent Together Limited,Services to People,Care Payments,04/03/2024,88
Education Services,Progress Schools Limited,Services to People,Fees and Charges,04/03/2024,46545.45
Social Care Services,Crystal Care Solutions,Services to People,Care Payments,04/03/2024,19905.6
Social Care Services,Crystal Care Solutions,Services to People,Care Payments,04/03/2024,19140
Social Care Services,Crystal Care Solutions,Services to People,Care Payments,04/03/2024,6214.29
Social Care Services,Theracare Homes Ltd Invoice payment,Services to People,Care Payments,04/03/2024,11942.86
Social Care Services,Theracare Homes Ltd Invoice payment,Services to People,Care Payments,04/03/2024,11942.86
Social Care Services,Theracare Homes Ltd Invoice payment,Services to People,Care Payments,04/03/2024,9100
Social Care Services,Theracare Homes Ltd Invoice payment,Services to People,Care Payments,04/03/2024,2357.14
Social Care Services,Theracare Homes Ltd Invoice payment,Services to People,Care Payments,04/03/2024,2357.14
Charity/Third Sector Support,AutiSK,Services to People,Publicity and Promotion,04/03/2024,705
Charity/Third Sector,Active Communities Experiences Ltd,Services to People,Publicity and Promotion,04/03/2024,2038.4
Social Care Services,CFS Care Ltd,Services to People,Care Payments,04/03/2024,3494.57
Social Care Services,CFS Care Ltd,Services to People,Care Payments,04/03/2024,1553.14
Social Care Services,By The Bridge with Cambian,Services to People,Care Payments,04/03/2024,4893.13
Social Care Services,By The Bridge with Cambian,Services to People,Care Payments,04/03/2024,-244.66
Social Care Services,Nestlings Care Ltd,Services to People,Care Payments,04/03/2024,16567.29
Social Care Services,Nestlings Care Ltd,Services to People,Care Payments,04/03/2024,16567.29
Social Care Services,A Triangle Care,Services to People,Care Payments,04/03/2024,28979.29
Foster Care,TACT Fostering,Services to People,Care Payments,04/03/2024,3596
Foster Care,TACT Fostering,Services to People,Care Payments,04/03/2024,2494
Foster Care,TACT Fostering,Services to People,Care Payments,04/03/2024,-187.05
Foster Care,TACT Fostering,Services to People,Care Payments,04/03/2024,-269.7
Social Care Services,Northern Community Pathways,Services to People,Care Payments,04/03/2024,5282.14
Social Care Services,Northern Community Pathways,Services to People,Care Payments,04/03/2024,4180.35
Social Care Services,Northern Community Pathways,Services to People,Care Payments,04/03/2024,1800
Social Care Services,Cathmor Limited,Services to People,Care Payments,04/03/2024,4920
Social Care Services,Cathmor Limited,Services to People,Care Payments,04/03/2024,4122.14
Social Care Services,Avensis Support Ltd,Services to People,Care Payments,04/03/2024,4764.29
Social Care Services,Bright Futures Care Ltd,Services to People,Care Payments,04/03/2024,10193.5
Social Care Services,Bright Futures Care Ltd,Services to People,Fees and Charges,04/03/2024,10193.5
Social Care Services,Bright Futures Care Ltd,Services to People,Professional Fees,04/03/2024,10193.5
Social Care Services,Stepping Stones Childrens Homes Ltd,Services to People,Care Payments,04/03/2024,22785.71
Social Care Services,Stepping Stones Childrens Homes Ltd,Services to People,Care Payments,04/03/2024,19554.78
Social Care Services,Infinity Care Home Ltd,Services to People,Care Payments,04/03/2024,24969
Social Care Services,Infinity Care Home Ltd,Services to People,Care Payments,04/03/2024,16342.86
Social Care Services,Infinity Care Home Ltd,Services to People,Care Payments,04/03/2024,15320.29
Social Care Services,Infinity Care Home Ltd,Services to People,Care Payments,04/03/2024,15320.29
Social Care Services,Infinity Care Home Ltd,Services to People,Care Payments,04/03/2024,14906
Social Care Services,Infinity Care Home Ltd,Services to People,Care Payments,04/03/2024,11033
